Workbook

Sheet Model
B2: COMMUNITY SOLAR MODEL | I2: Project Information
I3: Site:
B4: System Design | E4: Model: | F4: PV + Battery | G4:  | I4: Date:
C5: System Name Plate Size (kW, dc) | D5: 600 | I5: Contact info:
C6: DC/AC Ratio: | D6: 1.2 | E6: (cannot be changed for now) | I6: Notes:
C7: Location | D7: NC
C8: System Annual Degradation | D8: 0.005
C9: Panel Size, W | D9: 325 | E9: (to calculate subscriber number)
C10: Battery Power, kW | D10: 250
C11: Battery Capacity, kWh | D11: 500
B12: =IF(AND($F$4="PV Only",OR($D$10<>0,$D$11<>0)),"Make sure all Battery inputs are set to zero. ","") -> 
B15: System Costs | I15: Optimization Feature (Macros must be enabled.)
C16: Capital Cost of PV System ($/Wdc) | D16: 2
C17: Cap. Cost Machinery replacement ($/Wdc) | D17: 0.3 | E17: =D17*system_size*1000 -> 180000
C18: Machinery Replacement Period (yrs) | D18: 15
C19: Capital Cost of Battery ($/kWh) | D19: 600 | I19: What's the minimum cost for utility to break-even over 25 yrs?
C20: Cap. Cost of Battery Support System ($/Wdc) | D20: 1.5 | E20: Inverter, labor, permitting, etc | K20: Sets project value to subscription holders to zero, and calculates capital cost of PV system that results in NPV = 0.
C21: Battery Replacement Period (yrs) | D21: 25
C22: Wholesale Avoided Energy Cost, $/kWh | D22: 0.03
C23: Wholesale Avoided Demand Cost, $/kW | D23: 20 | I23: What's the minimum subscription cost?
C24: Fixed O&M, $/yr | D24: 0 | K24: Sets project value to subscription holders to 100%, and calculates the minimum subscription cost that results in Utility NPV = 0
C25: Fixed Capacity O&M, $/kW-yr | D25: 10
C26: =IF(OR(AND($F$4="PV only",$D$19<>0),AND($F$4="PV only",$D$20<>0)),"Make sure battery parameters are set to zero ","") -> 
B27: Subscription Parameters | E27: Model: | F27: Regular | G27: 
C29: % Project Value to Subscription Holders | D29: 1 | E29: =IF(F27="No Subscription",IF(D29<>0%,"No Subscription Model, thus value should be zero percent.",""),"") -> 
C30: Subscriptions unit subscribed (%) [disabled] | D30: 0
J31: Results - Quick View | M31: Detailed Results below
C32: RECS ($/MWh) | D32: 5 | K32: Utility | L32: End-Customer | M32: Subsidized Customer | N32: Tax Flip Investor | O32: PPA Developer
C33: Up-front Subsidy, $ | D33: 0 | J33: NPV @ 25yrs | K33: =T81 -> -4739.276805 | L33: =AB81 -> 580.2957038 | M33: =AH81 -> 2080.295704 | N33: =AU81 -> 1168127 | O33: =BA81 -> 0
C34: Annual subscription cost decreasing rate: | D34: 0 | J34: IRR | K34: =T79 -> -0.0003001011451 | L34: =AB79 -> - | M34: =AH79 -> - | N34: =AU79 ->  | O34: =BA79 -> -
C35: Initial Subscription Payment | D35: 0 | F35: Subscribers | J35: Payback, yrs | K35: =_xlfn.IFNA(T77,"-") -> 19 | L35: =_xlfn.IFNA(AB77,"-") -> 0 | M35: =_xlfn.IFNA(AH77,"-") -> 1 | N35: =AU77 -> 1 | O35: =BA77 -> 
C36: Rate Class 1, $/mo, %subscribed | D36: 5 | E36: 1 | F36: =Model!F38*E36 -> 1846.153846 | J36: Capital Cost, $ | K36: =-M83 -> 1875000 | N36: =-AQ83 -> 0 | O36: =-AY83 -> 0
C37: Rate Class 2 (LMI) , $/mo, % subscribed | D37: 0 | E37: 0 | F37: =E37*Model!F38 -> 0 | J37: Subscription Cost, $ | L37: =IF(D36=0,"-",D36) -> 5 | M37: =D37 -> 0
C38: =IF(AND($F$27="Regular",$D$37<>0),"Make Sure Rate Class 2 (LMI) is set to zero. ","") ->  | F38: =system_size/module_capacity*1000 -> 1846.153846
B39: Financial Parameters | E39: Model: | F39: Self-Owned | G39: 
D40: Calculated Capital Cost: | E40: =system_size*D16*1000+battery_power*D20*1000+battery_capacity*D19 -> 1875000 | I40: Navigation
C41: Discount rate | D41: 0
C42: Inflation rate | D42: 0.02 | I42: =B81 -> Energy Output | J42: =H81 -> Utility POV: PV SUBSCRIPTION Model
B43: =IF(AND($F$39="Self-Owned",OR($D$44<>0,$D$45<>0)),"Self-Owned option selected. Make Sure all percentages are set to zero. ","") ->  | I43: =H125 -> Results | J43: =U81 -> Subscriber POV: PV SUBSCRIPTION Model
C44: % Project Cost by Tax Equity Investor | D44: 0 | J44: =AC81 -> LMI Subscriber POV: PV SUBSCRIPTION Model
C45: % Returns to Equity Investor before flip | D45: 0 | J45: =AI81 -> POV: Tax Flip Investor
C46: Flip-Target Year | D46: 6
C47: % of Tax Benefits | D47: 1
C48: State Tax Deductible on Federal Taxes | D48: y
B49: Post-Flip Economic Returns Allocated to Equity Investor | D49: 0
B50: Year Commission | D50: 2017
B51: Tax Credit | D51: =MAX((IF(D50=2017,Database!B30,0)),((IF(D50=2018,Database!B31,0))),(IF(D50=2019,Database!B32,0)),(IF(D50=2020,Database!B33,0)),(IF(D50=2021,Database!B34,0)),(IF(D50=2022,Database!B35,0))) -> 0.3
B52: Depreciation Basis | E52: =1-D51/2 -> 0.85
C53: MACRS or Straight Line | D53: M | E53: *Straight-line disabled.
C54: If Straight Line-Life Span | D54: 10 | E54: =IF(AND(D54>D46,D53="S"),"Warning!: Investor transfers ownership at year "&D46,"") -> 
C55: State Tax | D55: 0.08
C56: Federal Tax | D56: 0.3
B57: PPA - Options [under development]
C58: PPA Investor covers all costs | D58: N
C61: On-Peak Energy ($/kWh) | F61: of Time
C62: Off-Peak Energy ($/kWh) | F62: of Time
C63: On-Peak Demand ($/kW)
C64: Off-Peak Demand ($/kW)
AB65: To enable this section, select the appropriate model
BN66: Perfect Discharge at C-Peak Time
AB67: Subscription subsidy: | AD67: =1-Model!D37/Model!D36 -> 1
T74: Utility | AB74: Customer | AH74: Customer | AU74: Investor | BA74: Customer
T75: ="Discounted "&D41*100&"%" -> Discounted 0% | AB75: ="Discounted "&D41*100&"%" -> Discounted 0% | AH75: Undiscounted | AU75: ="Discounted "&AC41*100&"%" -> Discounted 0% | BA75: Undiscounted
T76: Simple Payback, yrs | AB76: Simple Payback, yrs | AH76: Simple Payback, yrs | AU76: Simple Payback, yrs | BA76: Simple Payback, yrs
T77: =INDEX(H83:H108,MATCH(TRUE,R83:R108>0,0)) -> 19 | W77: =SUM(W83:W108)/12/25 -> 5 | X77: =SUM(X83:X108)/12/25 -> 6.934319013 | AB77: =IF(D35=0,0,INDEX(U83:U108,MATCH(TRUE,Z83:Z108>0,0))) -> 0 | AH77: =INDEX(U83:U108,MATCH(TRUE,AH83:AH108>0,0)) -> 1 | AU77: =INDEX(AI83:AI108,MATCH(TRUE,AS83:AS108>0,0)) -> 1 | BA77: =INDEX(AN83:AN108,MATCH(TRUE,BA83:BA108>0,0)) -> 
T78: IRR | AB78: IRR | AH78: IRR | AU78: IRR | BA78: IRR
T79: =IRR(Q83:Q108) -> -0.0003001011451 | AB79: =IF(AB83=0,"-",IRR(Y83:Y109,0)) -> - | AH79: =IF(AH83=0,"-",IRR(AG83:AG109,0)) -> - | AU79: =IRR(AR83:AR108) ->  | BA79: =IF(BA83=0,"-",IRR(AZ83:AZ109,0)) -> -
O80: =IF(AND(O84<>0,F39<>"PPA (third-party owned)"),"CHECK VALUES BELOW",) -> 0 | T80: Net Present Value | AB80: Net Present Value | AH80: Net Present Value | AU80: Net Present Value | BA80: Net Present Value
B81: Energy Output | H81: Utility POV: PV SUBSCRIPTION Model | T81: =SUM(S83:S108) -> -4739.276805 | U81: Subscriber POV: PV SUBSCRIPTION Model | AB81: =SUM(AA83:AA108) -> 580.2957038 | AC81: LMI Subscriber POV: PV SUBSCRIPTION Model | AH81: =AG83+NPV(0,AG84:AG108) -> 2080.295704 | AI81: POV: Tax Flip Investor | AU81: =SUM(AT83:AT108) -> 1168127 | AV81: POV PPA Investor/Developer | BA81: =AZ83+NPV(discount_rate,AZ84:AZ108) -> 0
B82: Year | C82: Energy | (kWh) | D82: Electricity, Avoided Cost, $ | E82: =IF(battery_power=0,"Demand Charges Avoided [PV], $","Demand Charges Avoided [BATTERY], $") -> Demand Charges Avoided [BATTERY], $ | H82: Year | I82: Subscription Income from Rate Class 1 | J82: Subscription Income from Rate Class 2 LMI | K82: Avoided Electricity Income ($) | L82: Total operating expense ($) | M82: Capital Costs | N82: RECS, $ | O82: PPA Expense $ | P82: Tax-Flip Cash Impact | Q82: Annual Cash Flow | R82: Cumulative Cash Flow | S82: Discounted Annual Cash Flow | T82: Cumulative Discounted Cash Flow | U82: Year | V82: 1-Unit Monthly Cost | W82: 1-Unit Annual Cost | X82: Annual Electricity Avoided Cost, $ | Y82: Annual Cash Flow | Z82: Cumulative Cash Flow | AA82: Discounted Annual Cash Flow | AB82: Discounted Cumulative Cash Flow | AC82: Year | AD82: 1-Unit Monthly Cost | AE82: 1-Unit Annual Cost | AF82: Annual Electricity Avoided Cost, $ | AG82: Annual Cash Flow | AH82: Cumulative Cash Flow | AI82: Year | AJ82: Subscription Income | AK82: Avoided Electricity Income $ | AL82: Federal Depreciation Cash Value | AM82: State Depreciation Cash Value | AN82: Value of Federal Tax Credit | AO82: RECS, $ | AP82: Operating expense ($) | AQ82: Capital Costs | AR82: Annual Cash Flow | AS82: Cumulative Cash Flow | AT82: Discounted Annual Cash Flow | AU82: Cumulative Discounted Cash Flow | AV82: Year | AW82: PPA Revenue, $ | AX82: Operating Expense, $ | AY82: Capital Cost, $ | AZ82: Annual Cash Flow | BA82: Cumulative Cash Flow
B83: 0 | C83: 0 | H83: 0 | I83: =D35*F38*(1-$D$45) -> 0 | J83: 0 | M83: =IF($D$58="Y",0,(D16*-1000*system_size+D19*-battery_capacity+D20*-1000*battery_power)*(1-$D$44)) -> -1875000 | N83: 0 | P83: =AR83 -> 0 | Q83: =M83+K83+I83+L83+N83+J83 -> -1875000 | R83: =Q83 -> -1875000 | S83: =Q83 -> -1875000 | T83: =S83 -> -1875000 | U83: 0 | V83: 0 | W83: =D35 -> 0 | X83: 0 | Y83: =-W83 -> 0 | Z83: =Y83 -> 0 | AA83: =-Y83 -> 0 | AB83: =AA83 -> 0 | AC83: 0 | AD83: 0 | AE83: =AD83*12 -> 0 | AF83: 0 | AG83: =AF83-AE83 -> 0 | AH83: =AG83 -> 0 | AI83: 0 | AJ83: =D35*$D$45 -> 0 | AO83: 0 | AQ83: =((D16+D19)*$D$5*-1000+$D$33)*($D$44) -> 0 | AR83: =SUM(AJ83:AQ83) -> 0 | AS83: =AR83 -> 0 | AT83: =AR83/(1+discount_rate)^AI83 -> 0 | AU83: =AT83 -> 0 | AV83: 0 | AW83: 0 | AY83: =IF($D$58="N",0,(D16*-1000*system_size+D19*-battery_capacity+D20*-1000*battery_power)*(1-$D$44)) -> 0 | AZ83: =SUM(AW83:AY83) -> 0 | BA83: =AZ83 -> 0
B84: 1 | C84: =Database!E2*system_size -> 992674.2857 | D84: =C84*Model!$D$22*(1+Model!$D$42)^B84 -> 30375.83314 | E84: =SUM('Hourly C-Peak'!$I$5:$J$16)/1.2*Model!$D$23*C84/$C$84*(1+Model!$D$42)^B84 -> 97493.99904 | H84: 1 | I84: =IF(H84<$D$46,$D$36*12*$F$36*$D$29*(1-$D$45),$D$36*12*$F$36*$D$29*(1-$D$49)) -> 110769.2308 | J84: =IF(H84<$D$46,$D$37*12*$D$29*$F$37*(1-$D$45),$D$37*12*$D$29*$F$37*(1-$D$49)) -> 0 | K84: =IF(H84<$D$46,(D84+E84)*(1-$D$29)*(1-$D$45),(D84+E84)*(1-$D$29)*(1-$D$49)) -> 0 | L84: =IF($D$58="Y",0,IF(H84<$D$46,-$D$25*system_size*(1-$D$45)*(1+inflation_rate)^H84,-$D$25*system_size*(1-$D$49)*(1+inflation_rate)^H84)) -> -6120 | M84: =IF($D$58="Y",0,IF(H84<$D$46,IF(H84=ROUND($D$21,0),$D$19*-battery_capacity+$D$20*-1000*battery_power,0)*(1-$D$45),IF(H84=ROUND($D$21,0),$D$19*-battery_capacity+$D$20*-1000*battery_power,0)*(1-$D$49))+(IF(H84<$D$46,(IF(H84=ROUND($D$18,0),-system_size*$D$17*1000,0)*(1-$D$45)),(IF(H84=ROUND($D$18,0),-system_size*$D$17*1000,0)*(1-$D$49))))) -> 0 | N84: =IF(H84<$D$46,C84/1000*$D$32*(1-$D$45)*(1+inflation_rate)^H84,C84/1000*$D$32*(1-$D$49)*(1+inflation_rate)^H84) -> 5062.638857 | O84: =-C84*($D$61*$E$61+$D$62*$E$62) -> 0 | P84: =AR84 -> 683625.4 | Q84: 109711.8696 | R84: =R83+Q84 -> -1765288.13 | S84: =Q84/(1+discount_rate)^H84 -> 109711.8696 | T84: =S84+T83 -> -1765288.13 | U84: 1 | V84: =-$D$36*(1+$D$34)^(U84-1) -> -5 | W84: =-V84*12 -> 60 | X84: =(D84+E84)/$F$38*$D$29 -> 69.26282577 | Y84: =X84-W84 -> 9.262825766 | Z84: =Z83+Y84 -> 9.262825766 | AA84: =Y84/(1+discount_rate)^U84 -> 9.262825766 | AB84: =AB83+AA84 -> 9.262825766 | AC84: 1 | AD84: =-$D$37*(1+$D$34)^(U84-1) -> 0 | AE84: =AD84*12 -> 0 | AF84: =(D84+E84)/$F$38*$D$29 -> 69.26282577 | AG84: =AF84+AE84 -> 69.26282577 | AH84: =AH83+AG84 -> 69.26282577 | AI84: 1 | AJ84: =($D$36*$F$36+$D$37*$F$37)*12*$D$30*$D$45 -> 0 | AK84: =(D84+E84)*(1-$D$29)*($D$45) -> 0 | AL84: =$E$52*$D$47*$E$40*Database!E16*Model!$D$56+Database!E16 -> 95625.2 | AM84: =$E$52*$D$47*$E$40*Database!E16*Model!$D$55+Database!E16 -> 25500.2 | AN84: =$D$51*E40*$D$47 -> 562500 | AO84: =IF(AI84-1<$D$46,C84/1000*$D$32*($D$45),C84/1000*$D$32*($D$49)) -> 0 | AP84: =IF(AI84-1<$D$46,-$D$25*system_size*($D$45),-$D$25*system_size*($D$49)) -> 0 | AQ84: =IF(AI84<$D$46,IF(AI84=ROUND($D$21,0),$D$19*system_size*-1000,0)*($D$45),IF(AI84=ROUND($D$21,0),$D$19*system_size*-1000,0)*($D$49)) -> 0 | AR84: =SUM(AJ84:AQ84) -> 683625.4 | AS84: =AS83+AR84 -> 683625.4 | AT84: 683625.4 | AU84: =AT84+AU83 -> 683625.4 | AV84: 1 | AW84: =-O84 -> 0 | AX84: =IF($D$58="n",0,IF(H84<$D$46,-$D$25*system_size*(1-$D$45)*(1+inflation_rate)^H84,-$D$25*system_size*(1-$D$49)*(1+inflation_rate)^H84)) -> 0 | AY84: =IF($D$58="N",0,IF(H84<$D$46,IF(H84=ROUND($D$21,0),$D$19*-battery_capacity+$D$20*-1000*battery_power,0)*(1-$D$45),IF(H84=ROUND($D$21,0),$D$19*-battery_capacity+$D$20*-1000*battery_power,0)*(1-$D$49))+(IF(H84<$D$46,(IF(H84=ROUND($D$18,0),-system_size*$D$17*1000,0)*(1-$D$45)),(IF(H84=ROUND($D$18,0),-system_size*$D$17*1000,0)*(1-$D$49))))) -> 0 | AZ84: =SUM(AW84:AY84) -> 0 | BA84: =BA83+AZ84 -> 0
B85: 2 | C85: =C84/(1+Model!$D$8) -> 987735.6077 | D85: =C85*Model!$D$22*(1+Model!$D$42)^B85 -> 30829.20379 | E85: =SUM('Hourly C-Peak'!$I$5:$J$16)/1.2*Model!$D$23*C85/$C$84*(1+Model!$D$42)^B85 -> 98949.13335 | H85: 2 | I85: 110769.2308 | J85: 0 | K85: 0 | L85: -6242.4 | M85: 0 | N85: 5138.200631 | O85: =-C85*($D$61*$E$61+$D$62*$E$62) -> 0 | P85: 193800.64 | Q85: 109665.0314 | R85: =R84+Q85 -> -1655623.099 | S85: 109665.0314 | T85: -1655623.099 | U85: 2 | V85: -5 | W85: 60 | X85: 70.29659928 | Y85: 10.29659928 | Z85: =Z84+Y85 -> 19.55942505 | AA85: =Y85/(1+discount_rate)^U85 -> 10.29659928 | AB85: =AB84+AA85 -> 19.55942505 | AC85: 2 | AD85: 0 | AE85: =AD85*12 -> 0 | AF85: 70.29659928 | AG85: 70.29659928 | AH85: 139.5594251 | AI85: 2 | AJ85: =IF(AI85<$D$46,AJ84*(1+$D$34),AJ84*(1+$D$34)*$D$49) -> 0 | AK85: =IF(AI85-1<$D$46,(D85+E85)*(1-$D$29)*($D$45),(D85+E85)*(1-$D$29)*($D$49)) -> 0 | AL85: =$E$52*$D$47*$E$40*Database!E17*Model!$D$56+Database!E17 -> 153000.32 | AM85: =$E$52*$D$47*$E$40*Database!E17*Model!$D$55+Database!E17 -> 40800.32 | AO85: 0 | AP85: 0 | AQ85: 0 | AR85: 193800.64 | AS85: =AS84+AR85 -> 877426.04 | AT85: 193800.64 | AU85: =AT85+AU84 -> 877426.04 | AV85: 2 | AW85: =-O85 -> 0 | AX85: 0 | AY85: 0 | AZ85: 0 | BA85: 0
B86: 3 | C86: =C85/(1+Model!$D$8) -> 982821.5002 | D86: =C86*Model!$D$22*(1+Model!$D$42)^B86 -> 31289.34116 | E86: =SUM('Hourly C-Peak'!$I$5:$J$16)/1.2*Model!$D$23*C86/$C$84*(1+Model!$D$42)^B86 -> 100425.9861 | H86: 3 | I86: 110769.2308 | J86: 0 | K86: 0 | L86: -6367.248 | M86: 0 | N86: 5214.890193 | O86: 0 | P86: 116280.384 | Q86: 109616.873 | R86: -1546006.226 | S86: 109616.873 | T86: -1546006.226 | U86: 3 | V86: -5 | W86: 60 | X86: 71.34580226 | Y86: 11.34580226 | Z86: 30.90522731 | AA86: 11.34580226 | AB86: 30.90522731 | AC86: 3 | AD86: 0 | AE86: 0 | AF86: 71.34580226 | AG86: 71.34580226 | AH86: 210.9052273 | AI86: 3 | AJ86: 0 | AK86: 0 | AL86: =$E$52*$D$47*$E$40*Database!E18*Model!$D$56+Database!E18 -> 91800.192 | AM86: =$E$52*$D$47*$E$40*Database!E18*Model!$D$55+Database!E18 -> 24480.192 | AO86: 0 | AP86: 0 | AQ86: 0 | AR86: 116280.384 | AS86: 993706.424 | AT86: 116280.384 | AU86: 993706.424 | AV86: 3 | AW86: 0 | AX86: 0 | AY86: 0 | AZ86: 0 | BA86: 0
B87: 4 | C87: =C86/(1+Model!$D$8) -> 977931.841 | D87: =C87*Model!$D$22*(1+Model!$D$42)^B87 -> 31756.34625 | E87: =SUM('Hourly C-Peak'!$I$5:$J$16)/1.2*Model!$D$23*C87/$C$84*(1+Model!$D$42)^B87 -> 101924.8814 | H87: 4 | I87: 110769.2308 | J87: 0 | K87: 0 | L87: -6494.59296 | M87: 0 | N87: 5292.724375 | O87: 0 | P87: 69768.2304 | Q87: 109567.3622 | R87: -1436438.864 | S87: 109567.3622 | T87: -1436438.864 | U87: 4 | V87: -5 | W87: 60 | X87: 72.41066498 | Y87: 12.41066498 | Z87: 43.31589229 | AA87: 12.41066498 | AB87: 43.31589229 | AC87: 4 | AD87: 0 | AE87: 0 | AF87: 72.41066498 | AG87: 72.41066498 | AH87: 283.3158923 | AI87: 4 | AJ87: 0 | AK87: 0 | AL87: =$E$52*$D$47*$E$40*Database!E19*Model!$D$56+Database!E19 -> 55080.1152 | AM87: =$E$52*$D$47*$E$40*Database!E19*Model!$D$55+Database!E19 -> 14688.1152 | AO87: 0 | AP87: 0 | AQ87: 0 | AR87: 69768.2304 | AS87: 1063474.654 | AT87: 69768.2304 | AU87: 1063474.654 | AV87: 4 | AW87: 0 | AX87: 0 | AY87: 0 | AZ87: 0 | BA87: 0
B88: 5 | C88: =C87/(1+Model!$D$8) -> 973066.5084 | D88: =C88*Model!$D$22*(1+Model!$D$42)^B88 -> 32230.32157 | E88: =SUM('Hourly C-Peak'!$I$5:$J$16)/1.2*Model!$D$23*C88/$C$84*(1+Model!$D$42)^B88 -> 103446.1483 | H88: 5 | I88: 110769.2308 | J88: 0 | K88: 0 | L88: -6624.484819 | M88: 0 | N88: 5371.720261 | O88: 0 | P88: 69768.2304 | Q88: 109516.4662 | R88: -1326922.398 | S88: 109516.4662 | T88: -1326922.398 | U88: 5 | V88: -5 | W88: 60 | X88: 73.49142117 | Y88: 13.49142117 | Z88: 56.80731346 | AA88: 13.49142117 | AB88: 56.80731346 | AC88: 5 | AD88: 0 | AE88: 0 | AF88: 73.49142117 | AG88: 73.49142117 | AH88: 356.8073135 | AI88: 5 | AJ88: 0 | AK88: 0 | AL88: =$E$52*$D$47*$E$40*Database!E20*Model!$D$56+Database!E20 -> 55080.1152 | AM88: =$E$52*$D$47*$E$40*Database!E20*Model!$D$55+Database!E20 -> 14688.1152 | AO88: 0 | AP88: 0 | AQ88: 0 | AR88: 69768.2304 | AS88: 1133242.885 | AT88: 69768.2304 | AU88: 1133242.885 | AV88: 5 | AW88: 0 | AX88: 0 | AY88: 0 | AZ88: 0 | BA88: 0
B89: 6 | C89: =C88/(1+Model!$D$8) -> 968225.3815 | D89: =C89*Model!$D$22*(1+Model!$D$42)^B89 -> 32711.37114 | E89: =SUM('Hourly C-Peak'!$I$5:$J$16)/1.2*Model!$D$23*C89/$C$84*(1+Model!$D$42)^B89 -> 104990.1207 | H89: 6 | I89: 110769.2308 | J89: 0 | K89: 0 | L89: -6756.974516 | M89: 0 | N89: 5451.89519 | O89: 0 | P89: 34884.1152 | Q89: 109464.1514 | R89: -1217458.246 | S89: 109464.1514 | T89: -1217458.246 | U89: 6 | V89: -5 | W89: 60 | X89: 74.58830806 | Y89: 14.58830806 | Z89: 71.39562152 | AA89: 14.58830806 | AB89: 71.39562152 | AC89: 6 | AD89: 0 | AE89: 0 | AF89: 74.58830806 | AG89: 74.58830806 | AH89: 431.3956215 | AI89: 6 | AJ89: 0 | AK89: 0 | AL89: =$E$52*$D$47*$E$40*Database!E21*Model!$D$56+Database!E21 -> 27540.0576 | AM89: =$E$52*$D$47*$E$40*Database!E21*Model!$D$55+Database!E21 -> 7344.0576 | AO89: 0 | AP89: 0 | AQ89: 0 | AR89: 34884.1152 | AS89: 1168127 | AT89: 34884.1152 | AU89: 1168127 | AV89: 6 | AW89: 0 | AX89: 0 | AY89: 0 | AZ89: 0 | BA89: 0
B90: 7 | C90: =C89/(1+Model!$D$8) -> 963408.3398 | D90: =C90*Model!$D$22*(1+Model!$D$42)^B90 -> 33199.60056 | E90: =SUM('Hourly C-Peak'!$I$5:$J$16)/1.2*Model!$D$23*C90/$C$84*(1+Model!$D$42)^B90 -> 106557.1374 | H90: 7 | I90: 110769.2308 | J90: 0 | K90: 0 | L90: -6892.114006 | M90: 0 | N90: 5533.26676 | O90: 0 | P90: 0 | Q90: 109410.3835 | R90: -1108047.863 | S90: 109410.3835 | T90: -1108047.863 | U90: 7 | V90: -5 | W90: 60 | X90: 75.70156639 | Y90: 15.70156639 | Z90: 87.0971879 | AA90: 15.70156639 | AB90: 87.0971879 | AC90: 7 | AD90: 0 | AE90: 0 | AF90: 75.70156639 | AG90: 75.70156639 | AH90: 507.0971879 | AI90: 7 | AJ90: 0 | AK90: 0 | AL90: =$E$52*$D$47*$E$40*Database!E22*Model!$D$56+Database!E22 -> 0 | AM90: =$E$52*$D$47*$E$40*Database!E22*Model!$D$55+Database!E22 -> 0 | AO90: 0 | AP90: 0 | AQ90: 0 | AR90: 0 | AS90: 1168127 | AT90: 0 | AU90: 1168127 | AV90: 7 | AW90: 0 | AX90: 0 | AY90: 0 | AZ90: 0 | BA90: 0
B91: 8 | C91: =C90/(1+Model!$D$8) -> 958615.2635 | D91: =C91*Model!$D$22*(1+Model!$D$42)^B91 -> 33695.11699 | E91: =SUM('Hourly C-Peak'!$I$5:$J$16)/1.2*Model!$D$23*C91/$C$84*(1+Model!$D$42)^B91 -> 108147.5424 | H91: 8 | I91: 110769.2308 | J91: 0 | K91: 0 | L91: -7029.956286 | M91: 0 | N91: 5615.852831 | O91: 0 | P91: 0 | Q91: 109355.1273 | R91: -998692.7353 | S91: 109355.1273 | T91: -998692.7353 | U91: 8 | V91: -5 | W91: 60 | X91: 76.83144051 | Y91: 16.83144051 | Z91: 103.9286284 | AA91: 16.83144051 | AB91: 103.9286284 | AC91: 8 | AD91: 0 | AE91: 0 | AF91: 76.83144051 | AG91: 76.83144051 | AH91: 583.9286284 | AI91: 8 | AJ91: 0 | AK91: 0 | AL91: =$E$52*$D$47*$E$40*Database!E23*Model!$D$56+Database!E23 -> 0 | AM91: =$E$52*$D$47*$E$40*Database!E23*Model!$D$55+Database!E23 -> 0 | AO91: 0 | AP91: 0 | AQ91: 0 | AR91: 0 | AS91: 1168127 | AT91: 0 | AU91: 1168127 | AV91: 8 | AW91: 0 | AX91: 0 | AY91: 0 | AZ91: 0 | BA91: 0
B92: 9 | C92: =C91/(1+Model!$D$8) -> 953846.0333 | D92: =C92*Model!$D$22*(1+Model!$D$42)^B92 -> 34198.02918 | E92: =SUM('Hourly C-Peak'!$I$5:$J$16)/1.2*Model!$D$23*C92/$C$84*(1+Model!$D$42)^B92 -> 109761.6848 | H92: 9 | I92: 110769.2308 | J92: 0 | K92: 0 | L92: -7170.555412 | M92: 0 | N92: 5699.67153 | O92: 0 | P92: 0 | Q92: 109298.3469 | R92: -889394.3884 | S92: 109298.3469 | T92: -889394.3884 | U92: 9 | V92: -5 | W92: 60 | X92: 77.97817843 | Y92: 17.97817843 | Z92: 121.9068068 | AA92: 17.97817843 | AB92: 121.9068068 | AC92: 9 | AD92: 0 | AE92: 0 | AF92: 77.97817843 | AG92: 77.97817843 | AH92: 661.9068068 | AI92: 9 | AJ92: 0 | AK92: 0 | AL92: =$E$52*$D$47*$E$40*Database!E24*Model!$D$56+Database!E24 -> 0 | AM92: =$E$52*$D$47*$E$40*Database!E24*Model!$D$55+Database!E24 -> 0 | AO92: 0 | AP92: 0 | AQ92: 0 | AR92: 0 | AS92: 1168127 | AT92: 0 | AU92: 1168127 | AV92: 9 | AW92: 0 | AX92: 0 | AY92: 0 | AZ92: 0 | BA92: 0
B93: 10 | C93: =C92/(1+Model!$D$8) -> 949100.5307 | D93: =C93*Model!$D$22*(1+Model!$D$42)^B93 -> 34708.44753 | E93: =SUM('Hourly C-Peak'!$I$5:$J$16)/1.2*Model!$D$23*C93/$C$84*(1+Model!$D$42)^B93 -> 111399.9189 | H93: 10 | I93: 110769.2308 | J93: 0 | K93: 0 | L93: -7313.96652 | M93: 0 | N93: 5784.741255 | O93: 0 | P93: 0 | Q93: 109240.0055 | R93: -780154.3829 | S93: 109240.0055 | T93: -780154.3829 | U93: 10 | V93: -5 | W93: 60 | X93: 79.14203184 | Y93: 19.14203184 | Z93: 141.0488387 | AA93: 19.14203184 | AB93: 141.0488387 | AC93: 10 | AD93: 0 | AE93: 0 | AF93: 79.14203184 | AG93: 79.14203184 | AH93: 741.0488387 | AI93: 10 | AJ93: 0 | AK93: 0 | AL93: =$E$52*$D$47*$E$40*Database!E25*Model!$D$56+Database!E25 -> 0 | AM93: =$E$52*$D$47*$E$40*Database!E25*Model!$D$55+Database!E25 -> 0 | AO93: 0 | AP93: 0 | AQ93: 0 | AR93: 0 | AS93: 1168127 | AT93: 0 | AU93: 1168127 | AV93: 10 | AW93: 0 | AX93: 0 | AY93: 0 | AZ93: 0 | BA93: 0
B94: 11 | C94: =C93/(1+Model!$D$8) -> 944378.6375 | D94: =C94*Model!$D$22*(1+Model!$D$42)^B94 -> 35226.48406 | E94: =SUM('Hourly C-Peak'!$I$5:$J$16)/1.2*Model!$D$23*C94/$C$84*(1+Model!$D$42)^B94 -> 113062.6043 | H94: 11 | I94: 110769.2308 | J94: 0 | K94: 0 | L94: -7460.24585 | M94: 0 | N94: 5871.080676 | O94: 0 | P94: 0 | Q94: 109180.0656 | R94: -670974.3173 | S94: 109180.0656 | T94: -670974.3173 | U94: 11 | V94: -5 | W94: 60 | X94: 80.32325619 | Y94: 20.32325619 | Z94: 161.3720949 | AA94: 20.32325619 | AB94: 161.3720949 | AC94: 11 | AD94: 0 | AE94: 0 | AF94: 80.32325619 | AG94: 80.32325619 | AH94: 821.3720949 | AI94: 11 | AJ94: 0 | AK94: 0 | AL94: =$E$52*$D$47*$E$40*Database!E26*Model!$D$56+Database!E26 -> 0 | AM94: =$E$52*$D$47*$E$40*Database!E26*Model!$D$55+Database!E26 -> 0 | AO94: 0 | AP94: 0 | AQ94: 0 | AR94: 0 | AS94: 1168127 | AT94: 0 | AU94: 1168127 | AV94: 11 | AW94: 0 | AX94: 0 | AY94: 0 | AZ94: 0 | BA94: 0
B95: 12 | C95: =C94/(1+Model!$D$8) -> 939680.2363 | D95: =C95*Model!$D$22*(1+Model!$D$42)^B95 -> 35752.25248 | E95: =SUM('Hourly C-Peak'!$I$5:$J$16)/1.2*Model!$D$23*C95/$C$84*(1+Model!$D$42)^B95 -> 114750.1059 | H95: 12 | I95: 110769.2308 | J95: 0 | K95: 0 | L95: -7609.450767 | M95: 0 | N95: 5958.708746 | O95: 0 | P95: 0 | Q95: 109118.4887 | R95: -561855.8286 | S95: 109118.4887 | T95: -561855.8286 | U95: 12 | V95: -5 | W95: 60 | X95: 81.52211076 | Y95: 21.52211076 | Z95: 182.8942056 | AA95: 21.52211076 | AB95: 182.8942056 | AC95: 12 | AD95: 0 | AE95: 0 | AF95: 81.52211076 | AG95: 81.52211076 | AH95: 902.8942056 | AI95: 12 | AJ95: 0 | AK95: 0 | AL95: =$E$52*$D$47*$E$40*Database!E27*Model!$D$56+Database!E27 -> 0 | AM95: =$E$52*$D$47*$E$40*Database!E27*Model!$D$55+Database!E27 -> 0 | AO95: 0 | AP95: 0 | AQ95: 0 | AR95: 0 | AS95: 1168127 | AT95: 0 | AU95: 1168127 | AV95: 12 | AW95: 0 | AX95: 0 | AY95: 0 | AZ95: 0 | BA95: 0
B96: 13 | C96: =C95/(1+Model!$D$8) -> 935005.2103 | D96: =C96*Model!$D$22*(1+Model!$D$42)^B96 -> 36285.86819 | E96: =SUM('Hourly C-Peak'!$I$5:$J$16)/1.2*Model!$D$23*C96/$C$84*(1+Model!$D$42)^B96 -> 116462.794 | H96: 13 | I96: 110769.2308 | J96: 0 | K96: 0 | L96: -7761.639783 | M96: 0 | N96: 6047.644698 | O96: 0 | P96: 0 | Q96: 109055.2357 | R96: -452800.5929 | S96: 109055.2357 | T96: -452800.5929 | U96: 13 | V96: -5 | W96: 60 | X96: 82.73885869 | Y96: 22.73885869 | Z96: 205.6330643 | AA96: 22.73885869 | AB96: 205.6330643 | AC96: 13 | AD96: 0 | AE96: 0 | AF96: 82.73885869 | AG96: 82.73885869 | AH96: 985.6330643 | AI96: 13 | AJ96: 0 | AK96: 0 | AL96: =$E$52*$D$47*$E$40*Database!E28*Model!$D$56+Database!E28 -> 0 | AM96: =$E$52*$D$47*$E$40*Database!E28*Model!$D$55+Database!E28 -> 0 | AO96: 0 | AP96: 0 | AQ96: 0 | AR96: 0 | AS96: 1168127 | AT96: 0 | AU96: 1168127 | AV96: 13 | AW96: 0 | AX96: 0 | AY96: 0 | AZ96: 0 | BA96: 0
B97: 14 | C97: =C96/(1+Model!$D$8) -> 930353.443 | D97: =C97*Model!$D$22*(1+Model!$D$42)^B97 -> 36827.44831 | E97: =SUM('Hourly C-Peak'!$I$5:$J$16)/1.2*Model!$D$23*C97/$C$84*(1+Model!$D$42)^B97 -> 118201.0447 | H97: 14 | I97: 110769.2308 | J97: 0 | K97: 0 | L97: -7916.872578 | M97: 0 | N97: 6137.908051 | O97: 0 | P97: 0 | Q97: 108990.2662 | R97: -343810.3267 | S97: 108990.2662 | T97: -343810.3267 | U97: 14 | V97: -5 | W97: 60 | X97: 83.97376702 | Y97: 23.97376702 | Z97: 229.6068313 | AA97: 23.97376702 | AB97: 229.6068313 | AC97: 14 | AD97: 0 | AE97: 0 | AF97: 83.97376702 | AG97: 83.97376702 | AH97: 1069.606831 | AI97: 14 | AJ97: 0 | AK97: 0 | AL97: =$E$52*$D$47*$E$40*Database!E29*Model!$D$56+Database!E29 -> 0 | AM97: =$E$52*$D$47*$E$40*Database!E29*Model!$D$55+Database!E29 -> 0 | AO97: 0 | AP97: 0 | AQ97: 0 | AR97: 0 | AS97: 1168127 | AT97: 0 | AU97: 1168127 | AV97: 14 | AW97: 0 | AX97: 0 | AY97: 0 | AZ97: 0 | BA97: 0
B98: 15 | C98: =C97/(1+Model!$D$8) -> 925724.819 | D98: =C98*Model!$D$22*(1+Model!$D$42)^B98 -> 37377.11171 | E98: =SUM('Hourly C-Peak'!$I$5:$J$16)/1.2*Model!$D$23*C98/$C$84*(1+Model!$D$42)^B98 -> 119965.2394 | H98: 15 | I98: 110769.2308 | J98: 0 | K98: 0 | L98: -8075.21003 | M98: -180000 | N98: 6229.518619 | O98: 0 | P98: 0 | Q98: -71076.46064 | R98: -414886.7873 | S98: -71076.46064 | T98: -414886.7873 | U98: 15 | V98: -5 | W98: 60 | X98: 85.22710683 | Y98: 25.22710683 | Z98: 254.8339382 | AA98: 25.22710683 | AB98: 254.8339382 | AC98: 15 | AD98: 0 | AE98: 0 | AF98: 85.22710683 | AG98: 85.22710683 | AH98: 1154.833938 | AI98: 15 | AJ98: 0 | AK98: 0 | AL98: =$E$52*$D$47*$E$40*Database!E30*Model!$D$56+Database!E30 -> 0 | AM98: =$E$52*$D$47*$E$40*Database!E30*Model!$D$55+Database!E30 -> 0 | AO98: 0 | AP98: 0 | AQ98: 0 | AR98: 0 | AS98: 1168127 | AT98: 0 | AU98: 1168127 | AV98: 15 | AW98: 0 | AX98: 0 | AY98: 0 | AZ98: 0 | BA98: 0
B99: 16 | C99: =C98/(1+Model!$D$8) -> 921119.2228 | D99: =C99*Model!$D$22*(1+Model!$D$42)^B99 -> 37934.97905 | E99: =SUM('Hourly C-Peak'!$I$5:$J$16)/1.2*Model!$D$23*C99/$C$84*(1+Model!$D$42)^B99 -> 121755.7653 | H99: 16 | I99: 110769.2308 | J99: 0 | K99: 0 | L99: -8236.714231 | M99: 0 | N99: 6322.496509 | O99: 0 | P99: 0 | Q99: 108855.013 | R99: -306031.7743 | S99: 108855.013 | T99: -306031.7743 | U99: 16 | V99: -5 | W99: 60 | X99: 86.4991532 | Y99: 26.4991532 | Z99: 281.3330914 | AA99: 26.4991532 | AB99: 281.3330914 | AC99: 16 | AD99: 0 | AE99: 0 | AF99: 86.4991532 | AG99: 86.4991532 | AH99: 1241.333091 | AI99: 16 | AJ99: 0 | AK99: 0 | AL99: =$E$52*$D$47*$E$40*Database!E31*Model!$D$56+Database!E31 -> 0 | AM99: =$E$52*$D$47*$E$40*Database!E31*Model!$D$55+Database!E31 -> 0 | AO99: 0 | AP99: 0 | AQ99: 0 | AR99: 0 | AS99: 1168127 | AT99: 0 | AU99: 1168127 | AV99: 16 | AW99: 0 | AX99: 0 | AY99: 0 | AZ99: 0 | BA99: 0
B100: 17 | C100: =C99/(1+Model!$D$8) -> 916536.5401 | D100: =C100*Model!$D$22*(1+Model!$D$42)^B100 -> 38501.17277 | E100: =SUM('Hourly C-Peak'!$I$5:$J$16)/1.2*Model!$D$23*C100/$C$84*(1+Model!$D$42)^B100 -> 123573.0155 | H100: 17 | I100: 110769.2308 | J100: 0 | K100: 0 | L100: -8401.448515 | M100: 0 | N100: 6416.862129 | O100: 0 | P100: 0 | Q100: 108784.6444 | R100: -197247.1299 | S100: 108784.6444 | T100: -197247.1299 | U100: 17 | V100: -5 | W100: 60 | X100: 87.79018534 | Y100: 27.79018534 | Z100: 309.1232767 | AA100: 27.79018534 | AB100: 309.1232767 | AC100: 17 | AD100: 0 | AE100: 0 | AF100: 87.79018534 | AG100: 87.79018534 | AH100: 1329.123277 | AI100: 17 | AJ100: 0 | AK100: 0 | AL100: =$E$52*$D$47*$E$40*Database!E32*Model!$D$56+Database!E32 -> 0 | AM100: =$E$52*$D$47*$E$40*Database!E32*Model!$D$55+Database!E32 -> 0 | AO100: 0 | AP100: 0 | AQ100: 0 | AR100: 0 | AS100: 1168127 | AT100: 0 | AU100: 1168127 | AV100: 17 | AW100: 0 | AX100: 0 | AY100: 0 | AZ100: 0 | BA100: 0
B101: 18 | C101: =C100/(1+Model!$D$8) -> 911976.6569 | D101: =C101*Model!$D$22*(1+Model!$D$42)^B101 -> 39075.81714 | E101: =SUM('Hourly C-Peak'!$I$5:$J$16)/1.2*Model!$D$23*C101/$C$84*(1+Model!$D$42)^B101 -> 125417.3889 | H101: 18 | I101: 110769.2308 | J101: 0 | K101: 0 | L101: -8569.477485 | M101: 0 | N101: 6512.63619 | O101: 0 | P101: 0 | Q101: 108712.3895 | R101: -88534.74041 | S101: 108712.3895 | T101: -88534.74041 | U101: 18 | V101: -5 | W101: 60 | X101: 89.10048661 | Y101: 29.10048661 | Z101: 338.2237633 | AA101: 29.10048661 | AB101: 338.2237633 | AC101: 18 | AD101: 0 | AE101: 0 | AF101: 89.10048661 | AG101: 89.10048661 | AH101: 1418.223763 | AI101: 18 | AJ101: 0 | AK101: 0 | AL101: =$E$52*$D$47*$E$40*Database!E33*Model!$D$56+Database!E33 -> 0 | AM101: =$E$52*$D$47*$E$40*Database!E33*Model!$D$55+Database!E33 -> 0 | AO101: 0 | AP101: 0 | AQ101: 0 | AR101: 0 | AS101: 1168127 | AT101: 0 | AU101: 1168127 | AV101: 18 | AW101: 0 | AX101: 0 | AY101: 0 | AZ101: 0 | BA101: 0
B102: 19 | C102: =C101/(1+Model!$D$8) -> 907439.4596 | D102: =C102*Model!$D$22*(1+Model!$D$42)^B102 -> 39659.03829 | E102: =SUM('Hourly C-Peak'!$I$5:$J$16)/1.2*Model!$D$23*C102/$C$84*(1+Model!$D$42)^B102 -> 127289.2902 | H102: 19 | I102: 110769.2308 | J102: 0 | K102: 0 | L102: -8740.867035 | M102: 0 | N102: 6609.839715 | O102: 0 | P102: 0 | Q102: 108638.2034 | R102: 20103.46304 | S102: 108638.2034 | T102: 20103.46304 | U102: 19 | V102: -5 | W102: 60 | X102: 90.43034462 | Y102: 30.43034462 | Z102: 368.654108 | AA102: 30.43034462 | AB102: 368.654108 | AC102: 19 | AD102: 0 | AE102: 0 | AF102: 90.43034462 | AG102: 90.43034462 | AH102: 1508.654108 | AI102: 19 | AJ102: 0 | AK102: 0 | AL102: =$E$52*$D$47*$E$40*Database!E34*Model!$D$56+Database!E34 -> 0 | AM102: =$E$52*$D$47*$E$40*Database!E34*Model!$D$55+Database!E34 -> 0 | AO102: 0 | AP102: 0 | AQ102: 0 | AR102: 0 | AS102: 1168127 | AT102: 0 | AU102: 1168127 | AV102: 19 | AW102: 0 | AX102: 0 | AY102: 0 | AZ102: 0 | BA102: 0
B103: 20 | C103: =C102/(1+Model!$D$8) -> 902924.8354 | D103: =C103*Model!$D$22*(1+Model!$D$42)^B103 -> 40250.96424 | E103: =SUM('Hourly C-Peak'!$I$5:$J$16)/1.2*Model!$D$23*C103/$C$84*(1+Model!$D$42)^B103 -> 129189.1304 | H103: 20 | I103: 110769.2308 | J103: 0 | K103: 0 | L103: -8915.684376 | M103: 0 | N103: 6708.494039 | O103: 0 | P103: 0 | Q103: 108562.0404 | R103: 128665.5035 | S103: 108562.0404 | T103: 128665.5035 | U103: 20 | V103: -5 | W103: 60 | X103: 91.78005126 | Y103: 31.78005126 | Z103: 400.4341592 | AA103: 31.78005126 | AB103: 400.4341592 | AC103: 20 | AD103: 0 | AE103: 0 | AF103: 91.78005126 | AG103: 91.78005126 | AH103: 1600.434159 | AI103: 20 | AJ103: 0 | AK103: 0 | AL103: =$E$52*$D$47*$E$40*Database!E35*Model!$D$56+Database!E35 -> 0 | AM103: =$E$52*$D$47*$E$40*Database!E35*Model!$D$55+Database!E35 -> 0 | AO103: 0 | AP103: 0 | AQ103: 0 | AR103: 0 | AS103: 1168127 | AT103: 0 | AU103: 1168127 | AV103: 20 | AW103: 0 | AX103: 0 | AY103: 0 | AZ103: 0 | BA103: 0
B104: 21 | C104: =C103/(1+Model!$D$8) -> 898432.672 | D104: =C104*Model!$D$22*(1+Model!$D$42)^B104 -> 40851.7249 | E104: =SUM('Hourly C-Peak'!$I$5:$J$16)/1.2*Model!$D$23*C104/$C$84*(1+Model!$D$42)^B104 -> 131117.3264 | H104: 21 | I104: 110769.2308 | J104: 0 | K104: 0 | L104: -9093.998063 | M104: 0 | N104: 6808.620816 | O104: 0 | P104: 0 | Q104: 108483.8535 | R104: 237149.357 | S104: 108483.8535 | T104: 237149.357 | U104: 21 | V104: -5 | W104: 60 | X104: 93.14990277 | Y104: 33.14990277 | Z104: 433.584062 | AA104: 33.14990277 | AB104: 433.584062 | AC104: 21 | AD104: 0 | AE104: 0 | AF104: 93.14990277 | AG104: 93.14990277 | AH104: 1693.584062 | AI104: 21 | AJ104: 0 | AK104: 0 | AL104: =$E$52*$D$47*$E$40*Database!E36*Model!$D$56+Database!E36 -> 0 | AM104: =$E$52*$D$47*$E$40*Database!E36*Model!$D$55+Database!E36 -> 0 | AO104: 0 | AP104: 0 | AQ104: 0 | AR104: 0 | AS104: 1168127 | AT104: 0 | AU104: 1168127 | AV104: 21 | AW104: 0 | AX104: 0 | AY104: 0 | AZ104: 0 | BA104: 0
B105: 22 | C105: =C104/(1+Model!$D$8) -> 893962.8577 | D105: =C105*Model!$D$22*(1+Model!$D$42)^B105 -> 41461.45213 | E105: =SUM('Hourly C-Peak'!$I$5:$J$16)/1.2*Model!$D$23*C105/$C$84*(1+Model!$D$42)^B105 -> 133074.3014 | H105: 22 | I105: 110769.2308 | J105: 0 | K105: 0 | L105: -9275.878025 | M105: 0 | N105: 6910.242022 | O105: 0 | P105: 0 | Q105: 108403.5948 | R105: 345552.9518 | S105: 108403.5948 | T105: 345552.9518 | U105: 22 | V105: -5 | W105: 60 | X105: 94.54019983 | Y105: 34.54019983 | Z105: 468.1242618 | AA105: 34.54019983 | AB105: 468.1242618 | AC105: 22 | AD105: 0 | AE105: 0 | AF105: 94.54019983 | AG105: 94.54019983 | AH105: 1788.124262 | AI105: 22 | AJ105: 0 | AK105: 0 | AL105: =$E$52*$D$47*$E$40*Database!E37*Model!$D$56+Database!E37 -> 0 | AM105: =$E$52*$D$47*$E$40*Database!E37*Model!$D$55+Database!E37 -> 0 | AO105: 0 | AP105: 0 | AQ105: 0 | AR105: 0 | AS105: 1168127 | AT105: 0 | AU105: 1168127 | AV105: 22 | AW105: 0 | AX105: 0 | AY105: 0 | AZ105: 0 | BA105: 0
B106: 23 | C106: =C105/(1+Model!$D$8) -> 889515.2813 | D106: =C106*Model!$D$22*(1+Model!$D$42)^B106 -> 42080.27978 | E106: =SUM('Hourly C-Peak'!$I$5:$J$16)/1.2*Model!$D$23*C106/$C$84*(1+Model!$D$42)^B106 -> 135060.485 | H106: 23 | I106: 110769.2308 | J106: 0 | K106: 0 | L106: -9461.395585 | M106: 0 | N106: 7013.379963 | O106: 0 | P106: 0 | Q106: 108321.2151 | R106: 453874.1669 | S106: 108321.2151 | T106: 453874.1669 | U106: 23 | V106: -5 | W106: 60 | X106: 95.95124758 | Y106: 35.95124758 | Z106: 504.0755094 | AA106: 35.95124758 | AB106: 504.0755094 | AC106: 23 | AD106: 0 | AE106: 0 | AF106: 95.95124758 | AG106: 95.95124758 | AH106: 1884.075509 | AI106: 23 | AJ106: 0 | AK106: 0 | AL106: =$E$52*$D$47*$E$40*Database!E38*Model!$D$56+Database!E38 -> 0 | AM106: =$E$52*$D$47*$E$40*Database!E38*Model!$D$55+Database!E38 -> 0 | AO106: 0 | AP106: 0 | AQ106: 0 | AR106: 0 | AS106: 1168127 | AT106: 0 | AU106: 1168127 | AV106: 23 | AW106: 0 | AX106: 0 | AY106: 0 | AZ106: 0 | BA106: 0
B107: 24 | C107: =C106/(1+Model!$D$8) -> 885089.8322 | D107: =C107*Model!$D$22*(1+Model!$D$42)^B107 -> 42708.34366 | E107: =SUM('Hourly C-Peak'!$I$5:$J$16)/1.2*Model!$D$23*C107/$C$84*(1+Model!$D$42)^B107 -> 137076.3131 | H107: 24 | I107: 110769.2308 | J107: 0 | K107: 0 | L107: -9650.623497 | M107: 0 | N107: 7118.057276 | O107: 0 | P107: 0 | Q107: 108236.6645 | R107: 562110.8315 | S107: 108236.6645 | T107: 562110.8315 | U107: 24 | V107: -5 | W107: 60 | X107: 97.38335576 | Y107: 37.38335576 | Z107: 541.4588651 | AA107: 37.38335576 | AB107: 541.4588651 | AC107: 24 | AD107: 0 | AE107: 0 | AF107: 97.38335576 | AG107: 97.38335576 | AH107: 1981.458865 | AI107: 24 | AJ107: 0 | AK107: 0 | AL107: =$E$52*$D$47*$E$40*Database!E39*Model!$D$56+Database!E39 -> 0 | AM107: =$E$52*$D$47*$E$40*Database!E39*Model!$D$55+Database!E39 -> 0 | AO107: 0 | AP107: 0 | AQ107: 0 | AR107: 0 | AS107: 1168127 | AT107: 0 | AU107: 1168127 | AV107: 24 | AW107: 0 | AX107: 0 | AY107: 0 | AZ107: 0 | BA107: 0
B108: 25 | C108: =C107/(1+Model!$D$8) -> 880686.4002 | D108: =C108*Model!$D$22*(1+Model!$D$42)^B108 -> 43345.78162 | E108: =SUM('Hourly C-Peak'!$I$5:$J$16)/1.2*Model!$D$23*C108/$C$84*(1+Model!$D$42)^B108 -> 139122.2282 | H108: 25 | I108: 110769.2308 | J108: 0 | K108: 0 | L108: -9843.635967 | M108: -675000 | N108: 7224.296937 | O108: 0 | P108: 0 | Q108: -566850.1083 | R108: -4739.276805 | S108: -566850.1083 | T108: -4739.276805 | U108: 25 | V108: -5 | W108: 60 | X108: 98.83683868 | Y108: 38.83683868 | Z108: 580.2957038 | AA108: 38.83683868 | AB108: 580.2957038 | AC108: 25 | AD108: 0 | AE108: 0 | AF108: 98.83683868 | AG108: 98.83683868 | AH108: 2080.295704 | AI108: 25 | AJ108: 0 | AK108: 0 | AL108: =$E$52*$D$47*$E$40*Database!E40*Model!$D$56+Database!E40 -> 0 | AM108: =$E$52*$D$47*$E$40*Database!E40*Model!$D$55+Database!E40 -> 0 | AO108: 0 | AP108: 0 | AQ108: 0 | AR108: 0 | AS108: 1168127 | AT108: 0 | AU108: 1168127 | AV108: 25 | AW108: 0 | AX108: 0 | AY108: 0 | AZ108: 0 | BA108: 0
H125: Results
I127: Summary Output | T127: Summary Output
I128: =Model!C36 -> Rate Class 1, $/mo, %subscribed | L128: =Model!D36 -> 5 | M128: =Model!E36 -> 1 | O128: =Model!F36 -> 1846.153846
I129: =Model!C37 -> Rate Class 2 (LMI) , $/mo, % subscribed | L129: =Model!D37 -> 0 | M129: =Model!E37 -> 0 | O129: =Model!F37 -> 0
N130: Total Subscribers | O130: =O129+O128 -> 1846.153846
I134: UTILITY PERSPECTIVE | T134: CUSTOMER PERSPECTIVE
J135: NPV_0 | K135: =NPV(0,Model!$Q$84:$Q$108)+Model!$Q$83 -> -4739.276805 | M135: IRR | N135: =IRR(Model!$Q$83:$Q$108) -> -0.0003001011451
J136: NPV_4% | K136: =NPV(0.04,Model!$Q$84:$Q$108)+Model!$Q$83 -> -523173.3003 | M136: Simple Payback, yrs | N136: =Model!T77 -> 19 | V136: NPV_0 | W136: =NPV(0,$Y$84:$Y$108)+$Y$83 -> 580.2957038 | Y136: IRR | Z136: =IRR(Y83:Y108) -> 
J137: NPV_6% | K137: =NPV(0.06,Model!$Q$84:$Q$108)+Model!$Q$83 -> -711477.839 | V137: NPV_4 | W137: =NPV(0.04,$Y$84:$Y$108)+$Y$83 -> 324.2733719 | Y137: Simple Payback | Z137: =AB77 -> 0
V138: NPV_8 | W138: =NPV(0.08,$Y$84:$Y$108)+$Y$83 -> 198.7879366 | Y138: Avg. Monthly Bill Savings, $: | Z138: =AB81/25/12 -> 1.934319013
I176: Sensitivity Analysis | T176: Sensitivity Analysis
I177: Effect of Varying Electric Avoided Cost on NPV and Simple Payback
M178: =C29 -> % Project Value to Subscription Holders | P178: =D29 -> 1 | T178: Effect of Varying Electric Avoided Cost on NPV and Simple Payback
I179: ="NPV"&"_"&discount_rate*100&"%" -> NPV_0% | J179: Demand Charges, $ | T179: ="NPV"&"_"&discount_rate*100&"%" -> NPV_0% | U179: Demand Charges, $
I180: Avoided Cost Electric, $/Kwh | T180: Avoided Cost Electric, $/Kwh
J181: =T81 -> -4739.276805 | K181: 10 | L181: 12 | M181: 14 | N181: 16 | O181: 18 | P181: 20 | Q181: 22 | U181: =AB81 -> 580.2957038 | V181: 13 | W181: 14 | X181: 15 | Y181: 16 | Z181: 17 | AA181: 18 | AB181: 19
J182: 0.01 | K182: -4739.276805 | L182: -4739.276805 | M182: -4739.276805 | N182: -4739.276805 | O182: -4739.276805 | P182: -4739.276805 | Q182: -4739.276805 | U182: 0.032 | V182: 58.10054577 | W182: 137.4063304 | X182: 216.712115 | Y182: 296.0178996 | Z182: 375.3236842 | AA182: 454.6294688 | AB182: 533.9352534
J183: 0.02 | K183: -4739.276805 | L183: -4739.276805 | M183: -4739.276805 | N183: -4739.276805 | O183: -4739.276805 | P183: -4739.276805 | Q183: -4739.276805 | U183: 0.032 | V183: 58.10054577 | W183: 137.4063304 | X183: 216.712115 | Y183: 296.0178996 | Z183: 375.3236842 | AA183: 454.6294688 | AB183: 533.9352534
J184: 0.03 | K184: -4739.276805 | L184: -4739.276805 | M184: -4739.276805 | N184: -4739.276805 | O184: -4739.276805 | P184: -4739.276805 | Q184: -4739.276805 | U184: 0.034 | V184: 91.04587989 | W184: 170.3516645 | X184: 249.6574491 | Y184: 328.9632337 | Z184: 408.2690183 | AA184: 487.5748029 | AB184: 566.8805875
J185: 0.04 | K185: -4739.276805 | L185: -4739.276805 | M185: -4739.276805 | N185: -4739.276805 | O185: -4739.276805 | P185: -4739.276805 | Q185: -4739.276805 | U185: 0.036 | V185: 123.991214 | W185: 203.2969986 | X185: 282.6027832 | Y185: 361.9085678 | Z185: 441.2143524 | AA185: 520.520137 | AB185: 599.8259216
J186: 0.05 | K186: -4739.276805 | L186: -4739.276805 | M186: -4739.276805 | N186: -4739.276805 | O186: -4739.276805 | P186: -4739.276805 | Q186: -4739.276805 | U186: 0.038 | V186: 156.9365481 | W186: 236.2423327 | X186: 315.5481173 | Y186: 394.8539019 | Z186: 474.1596865 | AA186: 553.4654711 | AB186: 632.7712557
J187: 0.06 | K187: -4739.276805 | L187: -4739.276805 | M187: -4739.276805 | N187: -4739.276805 | O187: -4739.276805 | P187: -4739.276805 | Q187: -4739.276805 | U187: 0.04 | V187: 189.8818823 | W187: 269.1876669 | X187: 348.4934515 | Y187: 427.7992361 | Z187: 507.1050207 | AA187: 586.4108053 | AB187: 665.7165899
J188: 0.07 | K188: -4739.276805 | L188: -4739.276805 | M188: -4739.276805 | N188: -4739.276805 | O188: -4739.276805 | P188: -4739.276805 | Q188: -4739.276805 | U188: 0.042 | V188: 222.8272164 | W188: 302.133001 | X188: 381.4387856 | Y188: 460.7445702 | Z188: 540.0503548 | AA188: 619.3561394 | AB188: 698.661924
J189: 0.08 | K189: -4739.276805 | L189: -4739.276805 | M189: -4739.276805 | N189: -4739.276805 | O189: -4739.276805 | P189: -4739.276805 | Q189: -4739.276805 | U189: 0.044 | V189: 255.7725505 | W189: 335.0783351 | X189: 414.3841197 | Y189: 493.6899043 | Z189: 572.9956889 | AA189: 652.3014735 | AB189: 731.6072581
J190: 0.09 | K190: -4739.276805 | L190: -4739.276805 | M190: -4739.276805 | N190: -4739.276805 | O190: -4739.276805 | P190: -4739.276805 | Q190: -4739.276805 | U190: 0.046 | V190: 288.7178846 | W190: 368.0236692 | X190: 447.3294538 | Y190: 526.6352384 | Z190: 605.941023 | AA190: 685.2468076 | AB190: 764.5525922
J191: 0.1 | K191: -4739.276805 | L191: -4739.276805 | M191: -4739.276805 | N191: -4739.276805 | O191: -4739.276805 | P191: -4739.276805 | Q191: -4739.276805 | U191: 0.048 | V191: 321.6632188 | W191: 400.9690034 | X191: 480.274788 | Y191: 559.5805726 | Z191: 638.8863572 | AA191: 718.1921418 | AB191: 797.4979264
I194: Effect of Varying Electric Avoided Cost on NPV and Simple Payback | T194: Effect of Varying Electric Avoided Cost on NPV and Simple Payback | X194: =#REF! ->  | AA194: =P71 -> 0
I195: Simple Payback | J195: Demand Charges, $ | T195: =I195 -> Simple Payback | U195: Demand Charges, $
I196: Avoided Cost Electric, $/Kwh | T196: Avoided Cost Electric, $/Kwh
J197: =T77 -> 19 | K197: 10 | L197: 12 | M197: 14 | N197: 16 | O197: 18 | P197: 20 | Q197: 22 | U197: =AB77 -> 0 | V197: 10 | W197: 12 | X197: 14 | Y197: 16 | Z197: 18 | AA197: 20 | AB197: 22
J198: 0.01 | K198: 19 | L198: 19 | M198: 19 | N198: 19 | O198: 19 | P198: 19 | Q198: 19 | U198: 0.01 | V198: 0 | W198: 0 | X198: 0 | Y198: 0 | Z198: 0 | AA198: 0 | AB198: 0
J199: 0.02 | K199: 19 | L199: 19 | M199: 19 | N199: 19 | O199: 19 | P199: 19 | Q199: 19 | U199: 0.02 | V199: 0 | W199: 0 | X199: 0 | Y199: 0 | Z199: 0 | AA199: 0 | AB199: 0
J200: 0.03 | K200: 19 | L200: 19 | M200: 19 | N200: 19 | O200: 19 | P200: 19 | Q200: 19 | U200: 0.03 | V200: 0 | W200: 0 | X200: 0 | Y200: 0 | Z200: 0 | AA200: 0 | AB200: 0
J201: 0.04 | K201: 19 | L201: 19 | M201: 19 | N201: 19 | O201: 19 | P201: 19 | Q201: 19 | U201: 0.04 | V201: 0 | W201: 0 | X201: 0 | Y201: 0 | Z201: 0 | AA201: 0 | AB201: 0
J202: 0.05 | K202: 19 | L202: 19 | M202: 19 | N202: 19 | O202: 19 | P202: 19 | Q202: 19 | U202: 0.05 | V202: 0 | W202: 0 | X202: 0 | Y202: 0 | Z202: 0 | AA202: 0 | AB202: 0
J203: 0.06 | K203: 19 | L203: 19 | M203: 19 | N203: 19 | O203: 19 | P203: 19 | Q203: 19 | U203: 0.06 | V203: 0 | W203: 0 | X203: 0 | Y203: 0 | Z203: 0 | AA203: 0 | AB203: 0
J204: 0.07 | K204: 19 | L204: 19 | M204: 19 | N204: 19 | O204: 19 | P204: 19 | Q204: 19 | U204: 0.07 | V204: 0 | W204: 0 | X204: 0 | Y204: 0 | Z204: 0 | AA204: 0 | AB204: 0
J205: 0.08 | K205: 19 | L205: 19 | M205: 19 | N205: 19 | O205: 19 | P205: 19 | Q205: 19 | U205: 0.08 | V205: 0 | W205: 0 | X205: 0 | Y205: 0 | Z205: 0 | AA205: 0 | AB205: 0
J206: 0.09 | K206: 19 | L206: 19 | M206: 19 | N206: 19 | O206: 19 | P206: 19 | Q206: 19 | U206: 0.09 | V206: 0 | W206: 0 | X206: 0 | Y206: 0 | Z206: 0 | AA206: 0 | AB206: 0
J207: 0.1 | K207: 19 | L207: 19 | M207: 19 | N207: 19 | O207: 19 | P207: 19 | Q207: 19 | U207: 0.1 | V207: 0 | W207: 0 | X207: 0 | Y207: 0 | Z207: 0 | AA207: 0 | AB207: 0
I210: Effect of Varying Size on NPV
I211: NPV | J211: PV System Capital Cost, $/W
I212: System Size, kW
J213: =T81 -> -4739.276805 | K213: 3 | L213: 2.2 | M213: 2 | N213: 1.75 | O213: 1.5 | P213: 1 | Q213: 0.75
J214: 500 | K214: -728949.3973 | L214: -328949.3973 | M214: -228949.3973 | N214: -103949.3973 | O214: 21050.60266 | P214: 271050.6027 | Q214: 396050.6027
J215: 750 | K215: -418424.096 | L215: 181575.904 | M215: 331575.904 | N215: 519075.904 | O215: 706575.904 | P215: 1081575.904 | Q215: 1269075.904
J216: 1000 | K216: -107898.7947 | L216: 692101.2053 | M216: 892101.2053 | N216: 1142101.205 | O216: 1392101.205 | P216: 1892101.205 | Q216: 2142101.205
J217: 1500 | K217: 513151.808 | L217: 1713151.808 | M217: 2013151.808 | N217: 2388151.808 | O217: 2763151.808 | P217: 3513151.808 | Q217: 3888151.808
J218: 2000 | K218: 1134202.411 | L218: 2734202.411 | M218: 3134202.411 | N218: 3634202.411 | O218: 4134202.411 | P218: 5134202.411 | Q218: 5634202.411
J219: 2500 | K219: 1755253.013 | L219: 3755253.013 | M219: 4255253.013 | N219: 4880253.013 | O219: 5505253.013 | P219: 6755253.013 | Q219: 7380253.013
J220: 3000 | K220: 2376303.616 | L220: 4776303.616 | M220: 5376303.616 | N220: 6126303.616 | O220: 6876303.616 | P220: 8376303.616 | Q220: 9126303.616
J221: 3500 | K221: 2997354.219 | L221: 5797354.219 | M221: 6497354.219 | N221: 7372354.219 | O221: 8247354.219 | P221: 9997354.219 | Q221: 10872354.22
J222: 4000 | K222: 3618404.821 | L222: 6818404.821 | M222: 7618404.821 | N222: 8618404.821 | O222: 9618404.821 | P222: 11618404.82 | Q222: 12618404.82
J223: 4500 | K223: 4239455.424 | L223: 7839455.424 | M223: 8739455.424 | N223: 9864455.424 | O223: 10989455.42 | P223: 13239455.42 | Q223: 14364455.42

Sheet Comments (hidden)
A1: Key Questions: | P1: Results - Quick View | R1: Detailed Results below
A2: What initial cost $/W for solar system is cost-effective for both utility and suscribers? | Q2: Utility | R2: Subsidized Customer | S2: Investor
P3: NPV @ 25yrs | Q3: 222021.0398 | R3: 0 | S3: 282650.4613
A4: What is the optimization point for battery and storage? | P4: IRR | Q4: 0.02471825657 | R4: - | S4: 0.2345954578
A5: Balancing upfront cost and suscription cost for maximizing NPV for suscriber and utility? | P5: Payback, yrs | Q5: 20 | R5: - | S5: 3
A6: What battery size would maintain NPV = 0 ? | P6: Capital Cost, $ | Q6: 477500 | S6: 477500
P7: Subscription Cost, $ | R7: 0
A10: TO-DO:
A11: Integrating SAM calculation to excel (changes in system size).
A12: Tax credits ; 3rd-party owned community solar /Depreciation
A13: Build and Integrate storage
A14: Macro for optimization (instead of using solver)
A15: P90/P50 by varying weather file, other sensitive variables including capital cost, demand match accuracy.
A18: Objective: Identify the minimum project cost & minimum suscription cost. | I18: Scenarios LMI:
A19: 1) Minimum capital cost required to make NPV =0 for the utility, based on PV alone. | I19: 1) How much capital infusion from a benefactor is needed to make project cost-effective? | Capital infusion is equal to utility's NPV.
A20: 2) Based on capital cost found from step 1, find the suscription cost such that NPV = 0 for both utility and suscribers | I20: -Is it cost-effective now? | J20: NPV=>0, for both suscriber and utility.
I21: -How much are LMI willing to pay? Or what is the price at which it is cost-neutral for participants? | The credit they're getting must be higher than their cost.
A22: Long-term | I22: -How much money you would need to subsidize project to meet criteria 2?
A23: Battery charging
A24: Different discharge model | I24: -In case of no up-front subsidy, can we get certain portion of the customers pay higher charge to subsidize cost for low-income ?
A25: Simple customer interface on a different sheet so they're able to play with variables and see economic parameters easily
A26: Utility-owned, partnership,
A30: If we have a fixed subscription fee, the customer will decrease every month, while the cost is fixed.
A31: Should the cash flow from the customer be discounted?
A32: If there's a customer who wants to pay upfront cost instead of monthly subscrition fee, what should it be?
A34: Go back to RMI and see how they use storage
A35: Output: graph of project cash flows (utility, and customers perspctive)
B36: savings
B37: scenario analysis: | D37: energy output see effect on NPV
D38: avoided cost vs NPV
A40: check our model against other models
A41: https://www.nrel.gov/docs/fy16osti/64987.pdf

Sheet Database (hidden)
AA1: No Subscription | AB1: PV only | AC1: Self-Owned
A2: SAM Input | E2: =VLOOKUP(Model!$D$7,Database!A4:D20,3,0) -> 1654.457143 | AA2: Regular | AB2: PV + Battery | AC2: Partnership flip
B3: Max | C3: Avg | D3: Min | AA3: LMI | AC3: PPA (third-party owned)
A4: FL | B4: 1877.99 | C4: 1723.887083 | D4: 1512.26
A5: GA | B5: 1756.4 | C5: 1663.2644 | D5: 1435.19
A6: KY | B6: 1651.43 | C6: 1524.923333 | D6: 1371.39
A7: MS | B7: 1726.74 | C7: 1659.612 | D7: 1544.64
A8: SC | B8: 1776.23 | C8: 1703.840769 | D8: 1589.43
A9: TN | B9: 1770.78 | C9: 1617.36 | D9: 1450.53
A10: NC | B10: 1824.66 | C10: 1654.457143 | D10: 1478.28
B16: MACRS Schedule | C16: Life Span | D16: 1 | E16: 0.2 | F16: =(1-Model!$D$56)*Model!AM84 -> 17850.14
D17: 2 | E17: 0.32 | F17: =(1-Model!$D$56)*Model!AM85 -> 28560.224
D18: 3 | E18: 0.192 | F18: =(1-Model!$D$56)*Model!AM86 -> 17136.1344
D19: 4 | E19: 0.1152 | F19: =(1-Model!$D$56)*Model!AM87 -> 10281.68064
D20: 5 | E20: 0.1152 | F20: =(1-Model!$D$56)*Model!AM88 -> 10281.68064
D21: 6 | E21: 0.0576 | F21: =(1-Model!$D$56)*Model!AM89 -> 5140.84032
D22: 7 | F22: =(1-Model!$D$56)*Model!AM90 -> 0
D23: 8 | F23: =(1-Model!$D$56)*Model!AM91 -> 0
D24: 9 | F24: =(1-Model!$D$56)*Model!AM92 -> 0
D25: 10 | F25: =(1-Model!$D$56)*Model!AM93 -> 0
D26: 11 | F26: =(1-Model!$D$56)*Model!AM94 -> 0
D27: 12 | F27: =(1-Model!$D$56)*Model!AM95 -> 0
D28: 13 | F28: =(1-Model!$D$56)*Model!AM96 -> 0
A29: Tax Credit Step Down Schedule | D29: 14 | F29: =(1-Model!$D$56)*Model!AM97 -> 0
A30: 2017 | B30: 0.3 | D30: 15 | F30: =(1-Model!$D$56)*Model!AM98 -> 0
A31: 2018 | B31: 0.3 | D31: 16 | F31: =(1-Model!$D$56)*Model!AM99 -> 0
A32: 2019 | B32: 0.3 | D32: 17 | F32: =(1-Model!$D$56)*Model!AM100 -> 0
A33: 2020 | B33: 0.26 | D33: 18 | F33: =(1-Model!$D$56)*Model!AM101 -> 0
A34: 2021 | B34: 0.22 | D34: 19 | F34: =(1-Model!$D$56)*Model!AM102 -> 0
A35: 2022 | B35: 0.1 | D35: 20 | F35: =(1-Model!$D$56)*Model!AM103 -> 0
D36: 21 | F36: =(1-Model!$D$56)*Model!AM104 -> 0
A37: State Tax Deductible on Federal | B37: y | C37: M | D37: 22 | F37: =(1-Model!$D$56)*Model!AM105 -> 0
B38: n | C38: S | D38: 23 | F38: =(1-Model!$D$56)*Model!AM106 -> 0
D39: 24 | F39: =(1-Model!$D$56)*Model!AM107 -> 0
D40: 25 | F40: =(1-Model!$D$56)*Model!AM108 -> 0

Sheet Hourly C-Peak
A1: Time stamp | B1: DC array power | (W)/1000 W system | C1: (2014 data) DEP in NC hourly average demand (MW) or (MWH)
A2: 2017-01-01 | B2: 0 | C2: 7751 | U2: Load Management Time | W2: Year | X2: Month | Y2: Day | Z2: Start Time
A3: 2017-01-01T01:00:00 | B3: 0 | C3: 7756 | G3: Monthly Summary | U3: 2017-01-09 | V3: 7-8 am | W3: 2017 | X3: 1 | Y3: 9 | Z3: 7
A4: 2017-01-01T02:00:00 | B4: 0 | C4: 7771 | G4: Month | H4: Max, MW | I4: PV Power at Max, kW | J4: Battery Support, kW | U4: 2017-02-10 | V4: 7-8 am | W4: 2017 | X4: 2 | Y4: 10 | Z4: 7
A5: 2017-01-01T03:00:00 | B5: 0 | C5: 7829 | F5: January | G5: 1 | H5: =MAX(IF(MONTH($A$2:$A$8761)=G5,$C$2:$C$8761)) -> 14215 | I5: =(INDEX($B$2:$B$8761,MATCH(H5,$C$2:$C$8761,0),0)/1000)*Model!$D$5 -> 10.17912 | J5: =battery_power -> 250 | K5: =INDEX($A$2:$A$8761,MATCH(H5,$C$2:$C$8761,0),0) -> 2017-01-07T07:00:00 | L5: =K5 -> 42742.29167 | N5: =Model!$D$10 -> 250 | P5: =COUNTIF($C$2:$C$8761,H5) -> 1 | U5: 2017-03-16 | V5: 7-8am | W5: 2017 | X5: 3 | Y5: 16 | Z5: 7
A6: 2017-01-01T04:00:00 | B6: 0 | C6: 7974 | F6: February | G6: 2 | H6: =MAX(IF(MONTH($A$2:$A$8761)=G6,$C$2:$C$8761)) -> 12053 | I6: =(INDEX($B$2:$B$8761,MATCH(H6,$C$2:$C$8761,0),0)/1000)*Model!$D$5 -> 321.0882 | J6: 250 | K6: =INDEX($A$2:$A$8761,MATCH(H6,$C$2:$C$8761,0),0) -> 2017-02-12T10:00:00 | L6: 42778.41667 | N6: =Model!$D$10 -> 250 | P6: =COUNTIF($C$2:$C$8761,H6) -> 2 | U6: 2017-04-28 | V6: 5-6pm | W6: 2017 | X6: 4 | Y6: 28 | Z6: 17
A7: 2017-01-01T05:00:00 | B7: 0 | C7: 8179 | F7: March | G7: 3 | H7: =MAX(IF(MONTH($A$2:$A$8761)=G7,$C$2:$C$8761)) -> 12525 | I7: =(INDEX($B$1000:$B$8761,MATCH(H7,$C$1000:$C$8761,0),0)/1000)*Model!$D$5 -> 250.6566 | J7: 250 | K7: =INDEX($A$1000:$A$8761,MATCH(H7,$C$1000:$C$8761,0),0) -> 2017-03-04T07:00:00 | L7: 42798.29167 | N7: =Model!$D$10 -> 250 | P7: 2 | U7: 2016-01-19 | V7: 7-8 am | W7: 2016 | X7: 1 | Y7: 19 | Z7: 7
A8: 2017-01-01T06:00:00 | B8: 0 | C8: 8408 | F8: April | G8: 4 | H8: =MAX(IF(MONTH($A$2:$A$8761)=G8,$C$2:$C$8761)) -> 8532 | I8: =(INDEX($B$2:$B$8761,MATCH(H8,$C$2:$C$8761,0),0)/1000)*Model!$D$5 -> 127.7136 | J8: 250 | K8: =INDEX($A$2:$A$8761,MATCH(H8,$C$2:$C$8761,0),0) -> 2017-04-17T06:00:00 | L8: 42842.25 | N8: =Model!$D$10 -> 250 | P8: 1 | U8: 2016-02-11 | V8: 7-8 am | W8: 2016 | X8: 2 | Y8: 11 | Z8: 7
A9: 2017-01-01T07:00:00 | B9: 10.4033 | C9: 8519 | F9: May | G9: 5 | H9: =MAX(IF(MONTH($A$2:$A$8761)=G9,$C$2:$C$8761)) -> 11002 | I9: =(INDEX($B$2:$B$8761,MATCH(H9,$C$2:$C$8761,0),0)/1000)*Model!$D$5 -> 185.3802 | J9: 250 | K9: 2017-05-28T15:00:00 | L9: 42883.625 | N9: =Model!$D$10 -> 250 | P9: 1 | U9: 2016-03-03 | V9: 7-8 am | W9: 2016 | X9: 3 | Y9: 3 | Z9: 7
A10: 2017-01-01T08:00:00 | B10: 122.43 | C10: 8633 | F10: June | G10: 6 | H10: =MAX(IF(MONTH($A$2:$A$8761)=G10,$C$2:$C$8761)) -> 12253 | I10: =(INDEX($B$2:$B$8761,MATCH(H10,$C$2:$C$8761,0),0)/1000)*Model!$D$5 -> 353.3646 | J10: 250 | K10: 2017-06-19T14:00:00 | L10: 42905.58333 | N10: =Model!$D$10 -> 250 | P10: 1 | U10: 2016-04-06 | V10: 7-8 am | W10: 2016 | X10: 4 | Y10: 6 | Z10: 7
A11: 2017-01-01T09:00:00 | B11: 262.019 | C11: 8474 | F11: July | G11: 7 | H11: =MAX(IF(MONTH($A$2:$A$8761)=G11,$C$2:$C$8761)) -> 12257 | I11: =(INDEX($B$2:$B$8761,MATCH(H11,$C$2:$C$8761,0),0)/1000)*Model!$D$5 -> 315.393 | J11: 250 | K11: 2017-07-02T15:00:00 | L11: 42918.625 | N11: =Model!$D$10 -> 250 | P11: 1 | U11: 2016-05-26 | V11: 5-6 pm | W11: 2016 | X11: 5 | Y11: 26 | Z11: 17
A12: 2017-01-01T10:00:00 | B12: 361.782 | C12: 8196 | F12: August | G12: 8 | H12: =MAX(IF(MONTH($A$2:$A$8761)=G12,$C$2:$C$8761)) -> 11965 | I12: =(INDEX($B$2:$B$8761,MATCH(H12,$C$2:$C$8761,0),0)/1000)*Model!$D$5 -> 510.408 | J12: 250 | K12: 2017-08-22T14:00:00 | L12: 42969.58333 | N12: =Model!$D$10 -> 250 | P12: 1 | U12: 2016-06-22 | V12: 4-5 pm | W12: 2016 | X12: 6 | Y12: 22 | Z12: 16
A13: 2017-01-01T11:00:00 | B13: 318.284 | C13: 7824 | F13: September | G13: 9 | H13: =MAX(IF(MONTH($A$2:$A$8761)=G13,$C$2:$C$8761)) -> 12364 | I13: =(INDEX($B$2:$B$8761,MATCH(H13,$C$2:$C$8761,0),0)/1000)*Model!$D$5 -> 100.2504 | J13: 250 | K13: 2017-09-02T13:00:00 | L13: 42980.54167 | N13: =Model!$D$10 -> 250 | P13: 1 | U13: 2016-07-26 | V13: 4-5 pm | W13: 2016 | X13: 7 | Y13: 26 | Z13: 16
A14: 2017-01-01T12:00:00 | B14: 164.821 | C14: 7470 | F14: October | G14: 10 | H14: =MAX(IF(MONTH($A$2:$A$8761)=G14,$C$2:$C$8761)) -> 8767 | I14: =(INDEX($B$5000:$B$8761,MATCH(H14,$C$5000:$C$8761,0),0)/1000)*Model!$D$5 -> 387.9186 | J14: 250 | K14: =INDEX($A$5000:$A$8761,MATCH(H14,$C$5000:$C$8761,0),0) -> 2017-10-08T15:00:00 | L14: 43016.625 | N14: =Model!$D$10 -> 250 | P14: 2 | U14: 2016-08-15 | V14: 4-5 pm | W14: 2016 | X14: 8 | Y14: 15 | Z14: 16
A15: 2017-01-01T13:00:00 | B15: 146.42 | C15: 7198 | F15: November | G15: 11 | H15: =MAX(IF(MONTH($A$2:$A$8761)=G15,$C$2:$C$8761)) -> 12486 | I15: =(INDEX($B$2:$B$8761,MATCH(H15,$C$2:$C$8761,0),0)/1000)*Model!$D$5 -> 156.0486 | J15: 250 | K15: =INDEX($A$2:$A$8761,MATCH(H15,$C$2:$C$8761,0),0) -> 2017-11-19T07:00:00 | L15: 43058.29167 | N15: =Model!$D$10 -> 250 | P15: 1 | U15: 2016-09-08 | V15: 4-5 pm | W15: 2016 | X15: 9 | Y15: 8 | Z15: 16
A16: 2017-01-01T14:00:00 | B16: 110.466 | C16: 7022 | F16: December | G16: 12 | H16: =MAX(IF(MONTH($A$2:$A$8761)=G16,$C$2:$C$8761)) -> 11252 | I16: =(INDEX($B$5000:$B$8761,MATCH(H16,$C$5000:$C$8761,0),0)/1000)*Model!$D$5 -> 16.5402 | J16: 250 | K16: =INDEX($A$5000:$A$8761,MATCH(H16,$C$5000:$C$8761,0),0) -> 2017-12-12T07:00:00 | L16: 43081.29167 | N16: =Model!$D$10 -> 250 | P16: 2 | U16: 2016-10-19 | V16: 4-5 pm | W16: 2016 | X16: 10 | Y16: 19 | Z16: 16
A17: 2017-01-01T15:00:00 | B17: 66.2432 | C17: 7025 | U17: 2016-11-23 | V17: 4-5 pm | W17: 2016 | X17: 11 | Y17: 23 | Z17: 16
A18: 2017-01-01T16:00:00 | B18: 22.055 | C18: 7288 | U18: 2016-12-16 | V18: 7-8 am | W18: 2016 | X18: 12 | Y18: 16 | Z18: 7
A19: 2017-01-01T17:00:00 | B19: 0 | C19: 8114 | U19: 2015-01-08 | V19: 7-8 am | W19: 2015 | X19: 1 | Y19: 8 | Z19: 7
A20: 2017-01-01T18:00:00 | B20: 0 | C20: 8271 | U20: 2015-02-20 | V20: 7-8 am | W20: 2015 | X20: 2 | Y20: 20 | Z20: 7
A21: 2017-01-01T19:00:00 | B21: 0 | C21: 8192 | U21: 2015-03-07 | V21: 7-8 am | W21: 2015 | X21: 3 | Y21: 7 | Z21: 7
A22: 2017-01-01T20:00:00 | B22: 0 | C22: 8038 | U22: 2015-04-10 | V22: 4-5 pm | W22: 2015 | X22: 4 | Y22: 10 | Z22: 16
A23: 2017-01-01T21:00:00 | B23: 0 | C23: 7735 | U23: 2015-05-18 | V23: 5-6 pm | W23: 2015 | X23: 5 | Y23: 18 | Z23: 17
A24: 2017-01-01T22:00:00 | B24: 0 | C24: 7319 | U24: 2015-06-16 | V24: 3-4 pm | W24: 2015 | X24: 6 | Y24: 16 | Z24: 15
A25: 2017-01-01T23:00:00 | B25: 0 | C25: 6853 | U25: 2015-07-21 | V25: 2-3 pm | W25: 2015 | X25: 7 | Y25: 21 | Z25: 14
A26: 2017-01-02 | B26: 0 | C26: 6553 | U26: 2015-08-05 | V26: 3-4 pm | W26: 2015 | X26: 8 | Y26: 5 | Z26: 15
A27: 2017-01-02T01:00:00 | B27: 0 | C27: 6424 | U27: 2015-09-02 | V27: 4-5 pm | W27: 2015 | X27: 9 | Y27: 2 | Z27: 16
A28: 2017-01-02T02:00:00 | B28: 0 | C28: 6369 | U28: 2015-10-19 | V28: 7-8 am | W28: 2015 | X28: 10 | Y28: 19 | Z28: 7
A29: 2017-01-02T03:00:00 | B29: 0 | C29: 6409 | U29: 2015-11-24 | V29: 7-8 am | W29: 2015 | X29: 11 | Y29: 24 | Z29: 7
A30: 2017-01-02T04:00:00 | B30: 0 | C30: 6625 | U30: 2015-12-20 | V30: 7-8 am | W30: 2015 | X30: 12 | Y30: 20 | Z30: 7
A31: 2017-01-02T05:00:00 | B31: 0 | C31: 7081 | U31: 2014-01-07 | V31: 7-8 am | W31: 2014 | X31: 1 | Y31: 7 | Z31: 7
A32: 2017-01-02T06:00:00 | B32: 0 | C32: 7851 | U32: 2014-02-12 | V32: 10-11 am | W32: 2014 | X32: 2 | Y32: 12 | Z32: 10
A33: 2017-01-02T07:00:00 | B33: 12.0891 | C33: 8247 | U33: 2014-03-04 | V33: 7-8 am | W33: 2014 | X33: 3 | Y33: 4 | Z33: 7
A34: 2017-01-02T08:00:00 | B34: 68.066 | C34: 8290 | U34: 2014-04-17 | V34: 7-8 am | W34: 2014 | X34: 4 | Y34: 17 | Z34: 7
A35: 2017-01-02T09:00:00 | B35: 158.744 | C35: 8350 | U35: 2014-05-28 | V35: 4-5 pm | W35: 2014 | X35: 5 | Y35: 28 | Z35: 16
A36: 2017-01-02T10:00:00 | B36: 683.539 | C36: 8299 | U36: 2014-06-19 | V36: 3-4 pm | W36: 2014 | X36: 6 | Y36: 19 | Z36: 15
A37: 2017-01-02T11:00:00 | B37: 704.322 | C37: 8240 | U37: 2014-07-02 | V37: 4-5 pm | W37: 2014 | X37: 7 | Y37: 2 | Z37: 16
A38: 2017-01-02T12:00:00 | B38: 691.013 | C38: 8087 | U38: 2014-08-22 | V38: 3-4 pm | W38: 2014 | X38: 8 | Y38: 22 | Z38: 15
A39: 2017-01-02T13:00:00 | B39: 678.987 | C39: 7950 | U39: 2014-09-02 | V39: 2-3 pm | W39: 2014 | X39: 9 | Y39: 2 | Z39: 14
A40: 2017-01-02T14:00:00 | B40: 426.038 | C40: 7915 | U40: 2014-10-08 | V40: 5-6 pm | W40: 2014 | X40: 10 | Y40: 8 | Z40: 17
A41: 2017-01-02T15:00:00 | B41: 643.265 | C41: 7860 | U41: 2014-11-19 | V41: 7-8 am | W41: 2014 | X41: 11 | Y41: 19 | Z41: 7
A42: 2017-01-02T16:00:00 | B42: 438.257 | C42: 8083 | U42: 2014-12-12 | V42: 7-8 am | W42: 2014 | X42: 12 | Y42: 12 | Z42: 7
A43: 2017-01-02T17:00:00 | B43: 26.4924 | C43: 8656 | U43: 2013-01-25 | V43: 7-8 am | W43: 2013 | X43: 1 | Y43: 25 | Z43: 7
A44: 2017-01-02T18:00:00 | B44: 0 | C44: 8745 | U44: 2013-02-18 | V44: 7-8 am | W44: 2013 | X44: 2 | Y44: 18 | Z44: 7
A45: 2017-01-02T19:00:00 | B45: 0 | C45: 8542 | U45: 2013-03-04 | V45: 7-8 am | W45: 2013 | X45: 3 | Y45: 4 | Z45: 7
A46: 2017-01-02T20:00:00 | B46: 0 | C46: 8351 | U46: 2013-04-04 | V46: 7-8 pm | W46: 2013 | X46: 4 | Y46: 4 | Z46: 19
A47: 2017-01-02T21:00:00 | B47: 0 | C47: 7994 | U47: 2013-05-30 | V47: 5-6 pm | W47: 2013 | X47: 5 | Y47: 30 | Z47: 17
A48: 2017-01-02T22:00:00 | B48: 0 | C48: 7567 | U48: 2013-06-13 | V48: 3-4 pm | W48: 2013 | X48: 6 | Y48: 13 | Z48: 15
A49: 2017-01-02T23:00:00 | B49: 0 | C49: 7197 | U49: 2013-07-16 | V49: 4-5 pm | W49: 2013 | X49: 7 | Y49: 16 | Z49: 16
A50: 2017-01-03 | B50: 0 | C50: 6953 | U50: 2013-08-12 | V50: 3-4 pm | W50: 2013 | X50: 8 | Y50: 12 | Z50: 15
A51: 2017-01-03T01:00:00 | B51: 0 | C51: 6989 | U51: 2013-09-10 | V51: 4-5 pm | W51: 2013 | X51: 9 | Y51: 10 | Z51: 16
A52: 2017-01-03T02:00:00 | B52: 0 | C52: 7253 | U52: 2013-10-04 | V52: 4-5 pm | W52: 2013 | X52: 10 | Y52: 4 | Z52: 16
A53: 2017-01-03T03:00:00 | B53: 0 | C53: 7689 | U53: 2013-11-25 | V53: 7-8 am | W53: 2013 | X53: 11 | Y53: 25 | Z53: 7
A54: 2017-01-03T04:00:00 | B54: 0 | C54: 8290 | U54: 2013-12-25 | V54: 7-8 am | W54: 2013 | X54: 12 | Y54: 25 | Z54: 7
A55: 2017-01-03T05:00:00 | B55: 0 | C55: 9225 | U55: 2012-01-04 | V55: 7-8 am | W55: 2012 | X55: 1 | Y55: 4 | Z55: 7
A56: 2017-01-03T06:00:00 | B56: 0 | C56: 10407 | U56: 2012-02-13 | V56: 7-8 am | W56: 2012 | X56: 2 | Y56: 13 | Z56: 7
A57: 2017-01-03T07:00:00 | B57: 7.44397 | C57: 11125 | U57: 2012-03-06 | V57: 7-8 am | W57: 2012 | X57: 3 | Y57: 6 | Z57: 7
A58: 2017-01-03T08:00:00 | B58: 77.6709 | C58: 11250 | U58: 2012-04-17 | V58: 4-5 pm | W58: 2012 | X58: 4 | Y58: 17 | Z58: 16
A59: 2017-01-03T09:00:00 | B59: 157.881 | C59: 11030 | U59: 2012-05-03 | V59: 4-5 pm | W59: 2012 | X59: 5 | Y59: 3 | Z59: 16
A60: 2017-01-03T10:00:00 | B60: 108.425 | C60: 10742 | U60: 2012-06-29 | V60: 5-6 pm | W60: 2012 | X60: 6 | Y60: 29 | Z60: 17
A61: 2017-01-03T11:00:00 | B61: 141.287 | C61: 10290 | U61: 2012-07-26 | V61: 4-5 pm | W61: 2012 | X61: 7 | Y61: 26 | Z61: 16
A62: 2017-01-03T12:00:00 | B62: 150.043 | C62: 9843 | U62: 2012-08-06 | V62: 3-4 pm | W62: 2012 | X62: 8 | Y62: 6 | Z62: 15
A63: 2017-01-03T13:00:00 | B63: 131.479 | C63: 9423 | U63: 2012-09-01 | V63: 3-4 pm | W63: 2012 | X63: 9 | Y63: 1 | Z63: 15
A64: 2017-01-03T14:00:00 | B64: 93.4011 | C64: 9118 | U64: 2012-10-03 | V64: 3-4 pm | W64: 2012 | X64: 10 | Y64: 3 | Z64: 15
A65: 2017-01-03T15:00:00 | B65: 51.2773 | C65: 9046 | U65: 2012-11-29 | V65: 7-8 am | W65: 2012 | X65: 11 | Y65: 29 | Z65: 7
A66: 2017-01-03T16:00:00 | B66: 28.8257 | C66: 9431 | U66: 2012-12-31 | V66: 7-8 am | W66: 2012 | X66: 12 | Y66: 31 | Z66: 7
A67: 2017-01-03T17:00:00 | B67: 0 | C67: 10483 | U67: 2011-01-14 | V67: 7-8 am | W67: 2011 | X67: 1 | Y67: 14 | Z67: 7
A68: 2017-01-03T18:00:00 | B68: 0 | C68: 11092 | U68: 2011-02-11 | V68: 7-8 am | W68: 2011 | X68: 2 | Y68: 11 | Z68: 7
A69: 2017-01-03T19:00:00 | B69: 0 | C69: 11208 | U69: 2011-03-29 | V69: 7-8 am | W69: 2011 | X69: 3 | Y69: 29 | Z69: 7
A70: 2017-01-03T20:00:00 | B70: 0 | C70: 11272 | U70: 2011-04-27 | V70: 4-5 pm | W70: 2011 | X70: 4 | Y70: 27 | Z70: 16
A71: 2017-01-03T21:00:00 | B71: 0 | C71: 11120 | U71: 2011-05-31 | V71: 4-5 pm | W71: 2011 | X71: 5 | Y71: 31 | Z71: 16
A72: 2017-01-03T22:00:00 | B72: 0 | C72: 10859 | U72: 2011-06-28 | V72: 2-3 pm | W72: 2011 | X72: 6 | Y72: 28 | Z72: 14
A73: 2017-01-03T23:00:00 | B73: 0 | C73: 10572 | U73: 2011-07-22 | V73: 2-3 pm | W73: 2011 | X73: 7 | Y73: 22 | Z73: 14
A74: 2017-01-04 | B74: 0 | C74: 10424 | U74: 2011-08-04 | V74: 3-4 pm | W74: 2011 | X74: 8 | Y74: 4 | Z74: 15
A75: 2017-01-04T01:00:00 | B75: 0 | C75: 10399 | U75: 2011-09-14 | V75: 4-5 pm | W75: 2011 | X75: 9 | Y75: 14 | Z75: 16
A76: 2017-01-04T02:00:00 | B76: 0 | C76: 10486 | U76: 2011-10-31 | V76: 8-9 am | W76: 2011 | X76: 10 | Y76: 31 | Z76: 8
A77: 2017-01-04T03:00:00 | B77: 0 | C77: 10575 | U77: 2011-11-18 | V77: 7-8 am | W77: 2011 | X77: 11 | Y77: 18 | Z77: 7
A78: 2017-01-04T04:00:00 | B78: 0 | C78: 10781 | U78: 2011-12-19 | V78: 7-8 am | W78: 2011 | X78: 12 | Y78: 19 | Z78: 7
A79: 2017-01-04T05:00:00 | B79: 0 | C79: 11064 | U79: 2010-01-11 | V79: 7-8 am | W79: 2010 | X79: 1 | Y79: 11 | Z79: 7
A80: 2017-01-04T06:00:00 | B80: 0 | C80: 11347 | U80: 2010-02-01 | V80: 7-8 am | W80: 2010 | X80: 2 | Y80: 1 | Z80: 7
A81: 2017-01-04T07:00:00 | B81: 3.35239 | C81: 11512 | U81: 2010-03-02 | V81: 6-7 pm | W81: 2010 | X81: 3 | Y81: 2 | Z81: 18
A82: 2017-01-04T08:00:00 | B82: 42.0397 | C82: 11509 | U82: 2010-04-06 | V82: 4-5 pm | W82: 2010 | X82: 4 | Y82: 6 | Z82: 16
A83: 2017-01-04T09:00:00 | B83: 87.9913 | C83: 11271 | U83: 2010-05-27 | V83: 4-5 pm | W83: 2010 | X83: 5 | Y83: 27 | Z83: 16
A84: 2017-01-04T10:00:00 | B84: 132.233 | C84: 10767 | U84: 2010-06-23 | V84: 3-4 pm | W84: 2010 | X84: 6 | Y84: 23 | Z84: 15
A85: 2017-01-04T11:00:00 | B85: 165.282 | C85: 10262 | U85: 2010-07-22 | V85: 4-5 pm | W85: 2010 | X85: 7 | Y85: 22 | Z85: 16
A86: 2017-01-04T12:00:00 | B86: 448.984 | C86: 9678 | U86: 2010-08-11 | V86: 4-5 pm | W86: 2010 | X86: 8 | Y86: 11 | Z86: 16
A87: 2017-01-04T13:00:00 | B87: 408.819 | C87: 9185 | U87: 2010-09-01 | V87: 4-5 pm | W87: 2010 | X87: 9 | Y87: 1 | Z87: 16
A88: 2017-01-04T14:00:00 | B88: 458.479 | C88: 8820 | U88: 2010-10-27 | V88: 6-7 pm | W88: 2010 | X88: 10 | Y88: 27 | Z88: 18
A89: 2017-01-04T15:00:00 | B89: 221.306 | C89: 8760 | U89: 2010-11-08 | V89: 6-7 pm | W89: 2010 | X89: 11 | Y89: 8 | Z89: 18
A90: 2017-01-04T16:00:00 | B90: 26.006 | C90: 8990 | U90: 2011-12-15 | V90: 7-8 am | W90: 2011 | X90: 12 | Y90: 15 | Z90: 7
A91: 2017-01-04T17:00:00 | B91: 1.05201 | C91: 9562 | U91: 2009-01-16 | V91: 7-8 am | W91: 2009 | X91: 1 | Y91: 16 | Z91: 7
A92: 2017-01-04T18:00:00 | B92: 0 | C92: 9730 | U92: 2009-02-05 | V92: 7-8 am | W92: 2009 | X92: 2 | Y92: 5 | Z92: 7
A93: 2017-01-04T19:00:00 | B93: 0 | C93: 9559 | U93: 2009-03-04 | V93: 6-7 am | W93: 2009 | X93: 3 | Y93: 4 | Z93: 6
A94: 2017-01-04T20:00:00 | B94: 0 | C94: 9386 | U94: 2009-04-27 | V94: 4-5 pm | W94: 2009 | X94: 4 | Y94: 27 | Z94: 16
A95: 2017-01-04T21:00:00 | B95: 0 | C95: 9084 | U95: 2009-05-29 | V95: 4-5 pm | W95: 2009 | X95: 5 | Y95: 29 | Z95: 16
A96: 2017-01-04T22:00:00 | B96: 0 | C96: 8549 | U96: 2009-06-29 | V96: 4-5 pm | W96: 2009 | X96: 6 | Y96: 29 | Z96: 16
A97: 2017-01-04T23:00:00 | B97: 0 | C97: 8213 | U97: 2009-07-28 | V97: 3-4 pm | W97: 2009 | X97: 7 | Y97: 28 | Z97: 15
A98: 2017-01-05 | B98: 0 | C98: 7776 | U98: 2009-08-10 | V98: 3-4 pm | W98: 2009 | X98: 8 | Y98: 10 | Z98: 15
A99: 2017-01-05T01:00:00 | B99: 0 | C99: 7587 | U99: 2009-09-24 | V99: 4-5 pm | W99: 2009 | X99: 9 | Y99: 24 | Z99: 16
A100: 2017-01-05T02:00:00 | B100: 0 | C100: 7425 | U100: 2009-10-07 | V100: 4-5 pm | W100: 2009 | X100: 10 | Y100: 7 | Z100: 16
A101: 2017-01-05T03:00:00 | B101: 0 | C101: 7348 | U101: 2009-11-12 | V101: 6-7 pm | W101: 2009 | X101: 11 | Y101: 12 | Z101: 18
A102: 2017-01-05T04:00:00 | B102: 0 | C102: 7328 | U102: 2009-12-21 | V102: 7-8 am | W102: 2009 | X102: 12 | Y102: 21 | Z102: 7
A103: 2017-01-05T05:00:00 | B103: 0 | C103: 7419 | U103: 2008-01-04 | V103: 7-8 am | W103: 2008 | X103: 1 | Y103: 4 | Z103: 7
A104: 2017-01-05T06:00:00 | B104: 0 | C104: 7560 | U104: 2008-02-28 | V104: 7-8 am | W104: 2008 | X104: 2 | Y104: 28 | Z104: 7
A105: 2017-01-05T07:00:00 | B105: 137.487 | C105: 7856 | U105: 2008-03-10 | V105: 7-8 am | W105: 2008 | X105: 3 | Y105: 10 | Z105: 7
A106: 2017-01-05T08:00:00 | B106: 626.462 | C106: 8105 | U106: 2008-04-16 | V106: 7-8 am | W106: 2008 | X106: 4 | Y106: 16 | Z106: 7
A107: 2017-01-05T09:00:00 | B107: 794.601 | C107: 8130 | U107: 2008-05-27 | V107: 4-5 pm | W107: 2008 | X107: 5 | Y107: 27 | Z107: 16
A108: 2017-01-05T10:00:00 | B108: 823.992 | C108: 7804 | U108: 2008-06-09 | V108: 4-5 pm | W108: 2008 | X108: 6 | Y108: 9 | Z108: 16
A109: 2017-01-05T11:00:00 | B109: 841.258 | C109: 7356 | U109: 2008-07-21 | V109: 4-5 pm | W109: 2008 | X109: 7 | Y109: 21 | Z109: 16
A110: 2017-01-05T12:00:00 | B110: 823.478 | C110: 7103 | U110: 2008-08-06 | V110: 4-5 pm | W110: 2008 | X110: 8 | Y110: 6 | Z110: 16
A111: 2017-01-05T13:00:00 | B111: 813.968 | C111: 6966 | U111: 2008-09-08 | V111: 4-5 pm | W111: 2008 | X111: 9 | Y111: 8 | Z111: 16
A112: 2017-01-05T14:00:00 | B112: 789.651 | C112: 6863 | U112: 2008-10-30 | V112: 7-8 am | W112: 2008 | X112: 10 | Y112: 30 | Z112: 7
A113: 2017-01-05T15:00:00 | B113: 729.312 | C113: 6792 | U113: 2008-11-24 | V113: 7-8 am | W113: 2008 | X113: 11 | Y113: 24 | Z113: 7
A114: 2017-01-05T16:00:00 | B114: 503.785 | C114: 6894 | U114: 2008-12-03 | V114: 7-8 am | W114: 2008 | X114: 12 | Y114: 3 | Z114: 7
A115: 2017-01-05T17:00:00 | B115: 31.3407 | C115: 7471 | U115: 2007-01-29 | V115: 7-8 am | W115: 2007 | X115: 1 | Y115: 29 | Z115: 7
A116: 2017-01-05T18:00:00 | B116: 0 | C116: 7584 | U116: 2007-02-06 | V116: 7-8 am | W116: 2007 | X116: 2 | Y116: 6 | Z116: 7
A117: 2017-01-05T19:00:00 | B117: 0 | C117: 7517 | U117: 2007-03-19 | V117: 7-8 am | W117: 2007 | X117: 3 | Y117: 19 | Z117: 7
A118: 2017-01-05T20:00:00 | B118: 0 | C118: 7314 | U118: 2007-04-30 | V118: 5-6 pm | W118: 2007 | X118: 4 | Y118: 30 | Z118: 17
A119: 2017-01-05T21:00:00 | B119: 0 | C119: 6908 | U119: 2007-05-30 | V119: 4-5 pm | W119: 2007 | X119: 5 | Y119: 30 | Z119: 16
A120: 2017-01-05T22:00:00 | B120: 0 | C120: 6424 | U120: 2007-06-19 | V120: 3-4 pm | W120: 2007 | X120: 6 | Y120: 19 | Z120: 15
A121: 2017-01-05T23:00:00 | B121: 0 | C121: 5942 | U121: 2007-07-19 | V121: 4-5 pm | W121: 2007 | X121: 7 | Y121: 19 | Z121: 16
A122: 2017-01-06 | B122: 0 | C122: 5573 | U122: 2007-08-09 | V122: 3-4 pm | W122: 2007 | X122: 8 | Y122: 9 | Z122: 15
A123: 2017-01-06T01:00:00 | B123: 0 | C123: 5420 | U123: 2007-09-10 | V123: 3-4 pm | W123: 2007 | X123: 9 | Y123: 10 | Z123: 15
A124: 2017-01-06T02:00:00 | B124: 0 | C124: 5309 | U124: 2007-10-08 | V124: 4-5 pm | W124: 2007 | X124: 10 | Y124: 8 | Z124: 16
A125: 2017-01-06T03:00:00 | B125: 0 | C125: 5314 | U125: 2007-11-08 | V125: 7-8 am | W125: 2007 | X125: 11 | Y125: 8 | Z125: 7
A126: 2017-01-06T04:00:00 | B126: 0 | C126: 5488 | U126: 2007-12-18 | V126: 7-8 am | W126: 2007 | X126: 12 | Y126: 18 | Z126: 7
A127: 2017-01-06T05:00:00 | B127: 0 | C127: 6035 | U127: 2006-01-27 | V127: 7-8 am | W127: 2006 | X127: 1 | Y127: 27 | Z127: 7
A128: 2017-01-06T06:00:00 | B128: 0 | C128: 6948 | U128: 2006-02-10 | V128: 7-8 am | W128: 2006 | X128: 2 | Y128: 10 | Z128: 7
A129: 2017-01-06T07:00:00 | B129: 59.9436 | C129: 7289 | U129: 2006-03-08 | V129: 6-7 am | W129: 2006 | X129: 3 | Y129: 8 | Z129: 6
A130: 2017-01-06T08:00:00 | B130: 291.848 | C130: 7280 | U130: 2006-04-25 | V130: 4-5 pm | W130: 2006 | X130: 4 | Y130: 25 | Z130: 16
A131: 2017-01-06T09:00:00 | B131: 494.575 | C131: 7392 | U131: 2006-05-30 | V131: 5-6 pm | W131: 2006 | X131: 5 | Y131: 30 | Z131: 17
A132: 2017-01-06T10:00:00 | B132: 594.023 | C132: 7591 | U132: 2006-06-22 | V132: 4-5 pm | W132: 2006 | X132: 6 | Y132: 22 | Z132: 16
A133: 2017-01-06T11:00:00 | B133: 618.046 | C133: 7640 | U133: 2006-07-31 | V133: 3-4 pm | W133: 2006 | X133: 7 | Y133: 31 | Z133: 15
A134: 2017-01-06T12:00:00 | B134: 652.312 | C134: 7731 | U134: 2006-08-02 | V134: 4-5 pm | W134: 2006 | X134: 8 | Y134: 2 | Z134: 16
A135: 2017-01-06T13:00:00 | B135: 583.721 | C135: 7746 | U135: 2006-09-19 | V135: 4-5 pm | W135: 2006 | X135: 9 | Y135: 19 | Z135: 16
A136: 2017-01-06T14:00:00 | B136: 535.156 | C136: 7698 | U136: 2006-10-05 | V136: 4-5 pm | W136: 2006 | X136: 10 | Y136: 5 | Z136: 16
A137: 2017-01-06T15:00:00 | B137: 652.802 | C137: 7872 | U137: 2006-11-21 | V137: 5-6 pm | W137: 2006 | X137: 11 | Y137: 21 | Z137: 17
A138: 2017-01-06T16:00:00 | B138: 264.083 | C138: 8320 | U138: 2007-12-08 | V138: 6-7 am | W138: 2007 | X138: 12 | Y138: 8 | Z138: 6
A139: 2017-01-06T17:00:00 | B139: 6.65406 | C139: 9404 | U139: 2005-01-24 | V139: 7-8 am | W139: 2005 | X139: 1 | Y139: 24 | Z139: 7
A140: 2017-01-06T18:00:00 | B140: 0 | C140: 10273 | U140: 2004-02-02 | V140: 7-8 am | W140: 2004 | X140: 2 | Y140: 2 | Z140: 7
A141: 2017-01-06T19:00:00 | B141: 0 | C141: 10680 | U141: 2005-03-04 | V141: 6-7 am | W141: 2005 | X141: 3 | Y141: 4 | Z141: 6
A142: 2017-01-06T20:00:00 | B142: 0 | C142: 10828 | U142: 2005-04-21 | V142: 4-5 pm | W142: 2005 | X142: 4 | Y142: 21 | Z142: 16
A143: 2017-01-06T21:00:00 | B143: 0 | C143: 10908 | U143: 2005-05-12 | V143: 4-5 pm | W143: 2005 | X143: 5 | Y143: 12 | Z143: 16
A144: 2017-01-06T22:00:00 | B144: 0 | C144: 10880 | U144: 2005-06-15 | V144: 4-5 pm | W144: 2005 | X144: 6 | Y144: 15 | Z144: 16
A145: 2017-01-06T23:00:00 | B145: 0 | C145: 10826 | U145: 2005-07-27 | V145: 4-5 pm | W145: 2005 | X145: 7 | Y145: 27 | Z145: 16
A146: 2017-01-07 | B146: 0 | C146: 11007 | U146: 2005-08-15 | V146: 3-4 pm | W146: 2005 | X146: 8 | Y146: 15 | Z146: 15
A147: 2017-01-07T01:00:00 | B147: 0 | C147: 11325 | U147: 2006-09-20 | V147: 4-5 pm | W147: 2006 | X147: 9 | Y147: 20 | Z147: 16
A148: 2017-01-07T02:00:00 | B148: 0 | C148: 11692 | U148: 2005-10-05 | V148: 2-3 pm | W148: 2005 | X148: 10 | Y148: 5 | Z148: 14
A149: 2017-01-07T03:00:00 | B149: 0 | C149: 12131 | U149: 2005-11-18 | V149: 7-8 am | W149: 2005 | X149: 11 | Y149: 18 | Z149: 7
A150: 2017-01-07T04:00:00 | B150: 0 | C150: 12712 | U150: 2005-12-22 | V150: 7-8 am | W150: 2005 | X150: 12 | Y150: 22 | Z150: 7
A151: 2017-01-07T05:00:00 | B151: 0 | C151: 13432 | U151: 2004-01-26 | V151: 10-11 am | W151: 2004 | X151: 1 | Y151: 26 | Z151: 10
A152: 2017-01-07T06:00:00 | B152: 0 | C152: 14010 | U152: 2004-02-02 | V152: 7-8 am | W152: 2004 | X152: 2 | Y152: 2 | Z152: 7
A153: 2017-01-07T07:00:00 | B153: 16.9652 | C153: 14215 | U153: 2004-03-23 | V153: 6-7 am | W153: 2004 | X153: 3 | Y153: 23 | Z153: 6
A154: 2017-01-07T08:00:00 | B154: 272.889 | C154: 14172 | U154: 2004-04-23 | V154: 4-5 pm | W154: 2004 | X154: 4 | Y154: 23 | Z154: 16
A155: 2017-01-07T09:00:00 | B155: 358.863 | C155: 13606 | U155: 2004-05-26 | V155: 4-5 pm | W155: 2004 | X155: 5 | Y155: 26 | Z155: 16
A156: 2017-01-07T10:00:00 | B156: 147.356 | C156: 13113 | U156: 2004-06-18 | V156: 3-4 pm | W156: 2004 | X156: 6 | Y156: 18 | Z156: 15
A157: 2017-01-07T11:00:00 | B157: 185.274 | C157: 12505 | U157: 2004-07-14 | V157: 4-5 pm | W157: 2004 | X157: 7 | Y157: 14 | Z157: 16
A158: 2017-01-07T12:00:00 | B158: 380.513 | C158: 11996 | U158: 2004-08-04 | V158: 4-5 pm | W158: 2004 | X158: 8 | Y158: 4 | Z158: 16
A159: 2017-01-07T13:00:00 | B159: 395.514 | C159: 11441 | U159: 2004-09-09 | V159: 4-5 PM | W159: 2004 | X159: 9 | Y159: 9 | Z159: 16
A160: 2017-01-07T14:00:00 | B160: 465.95 | C160: 11034 | U160: 2004-10-04 | V160: 4-5 PM | W160: 2004 | X160: 10 | Y160: 4 | Z160: 16
A161: 2017-01-07T15:00:00 | B161: 319.565 | C161: 10965 | U161: 2004-11-15 | V161: 7-8 AM | W161: 2004 | X161: 11 | Y161: 15 | Z161: 7
A162: 2017-01-07T16:00:00 | B162: 112.942 | C162: 11573 | U162: 2004-12-20 | V162: 7-8 AM | W162: 2004 | X162: 12 | Y162: 20 | Z162: 7
A163: 2017-01-07T17:00:00 | B163: 3.9054 | C163: 12512 | U163: 2003-01-24 | V163: 7-8 am | W163: 2003 | X163: 1 | Y163: 24 | Z163: 7
A164: 2017-01-07T18:00:00 | B164: 0 | C164: 13138 | U164: 2003-02-13 | V164: 7-8 am | W164: 2003 | X164: 2 | Y164: 13 | Z164: 7
A165: 2017-01-07T19:00:00 | B165: 0 | C165: 13314 | U165: 2003-03-04 | V165: 7-8 am | W165: 2003 | X165: 3 | Y165: 4 | Z165: 7
A166: 2017-01-07T20:00:00 | B166: 0 | C166: 13258 | U166: 2003-04-01 | V166: 6-7 am | W166: 2003 | X166: 4 | Y166: 1 | Z166: 6
A167: 2017-01-07T21:00:00 | B167: 0 | C167: 13083 | U167: 2003-05-09 | V167: 4-5 pm | W167: 2003 | X167: 5 | Y167: 9 | Z167: 16
A168: 2017-01-07T22:00:00 | B168: 0 | C168: 12505 | U168: 2003-06-26 | V168: 4-5 pm | W168: 2003 | X168: 6 | Y168: 26 | Z168: 16
A169: 2017-01-07T23:00:00 | B169: 0 | C169: 12129 | U169: 2003-07-09 | V169: 4-5 pm | W169: 2003 | X169: 7 | Y169: 9 | Z169: 16
A170: 2017-01-08 | B170: 0 | C170: 12028 | U170: 2003-08-27 | V170: 3-4 pm | W170: 2003 | X170: 8 | Y170: 27 | Z170: 15
A171: 2017-01-08T01:00:00 | B171: 0 | C171: 11995 | U171: 2003-09-03 | V171: 4-5 pm | W171: 2003 | X171: 9 | Y171: 3 | Z171: 16
A172: 2017-01-08T02:00:00 | B172: 0 | C172: 12070 | U172: 2003-10-13 | V172: 3-4 pm | W172: 2003 | X172: 10 | Y172: 13 | Z172: 15
A173: 2017-01-08T03:00:00 | B173: 0 | C173: 12208 | U173: 2003-11-05 | V173: 6-7 pm | W173: 2003 | X173: 11 | Y173: 5 | Z173: 18
A174: 2017-01-08T04:00:00 | B174: 0 | C174: 12525 | U174: 2003-12-08 | V174: 7-8 am | W174: 2003 | X174: 12 | Y174: 8 | Z174: 7
A175: 2017-01-08T05:00:00 | B175: 0 | C175: 13114 | U175: 2002-01-08 | V175: 7-8 am | W175: 2002 | X175: 1 | Y175: 8 | Z175: 7
A176: 2017-01-08T06:00:00 | B176: 0 | C176: 13761 | U176: 2002-02-05 | V176: 7-8 am | W176: 2002 | X176: 2 | Y176: 5 | Z176: 7
A177: 2017-01-08T07:00:00 | B177: 26.148 | C177: 13962 | U177: 2002-03-01 | V177: 7-8 am | W177: 2002 | X177: 3 | Y177: 1 | Z177: 7
A178: 2017-01-08T08:00:00 | B178: 264.181 | C178: 13756 | U178: 2002-04-18 | V178: 4-5 pm | W178: 2002 | X178: 4 | Y178: 18 | Z178: 16
A179: 2017-01-08T09:00:00 | B179: 348.811 | C179: 12619 | U179: 2002-05-09 | V179: 3-4 pm | W179: 2002 | X179: 5 | Y179: 9 | Z179: 15
A180: 2017-01-08T10:00:00 | B180: 359.74 | C180: 11267 | U180: 2002-06-13 | V180: 4-5 pm | W180: 2002 | X180: 6 | Y180: 13 | Z180: 16
A181: 2017-01-08T11:00:00 | B181: 371.753 | C181: 10347 | U181: 2002-07-30 | V181: 3-4 pm | W181: 2002 | X181: 7 | Y181: 30 | Z181: 15
A182: 2017-01-08T12:00:00 | B182: 608.709 | C182: 9581 | U182: 2002-08-23 | V182: 3-4 pm | W182: 2002 | X182: 8 | Y182: 23 | Z182: 15
A183: 2017-01-08T13:00:00 | B183: 427.516 | C183: 8976 | U183: 2002-09-04 | V183: 4-5 pm | W183: 2002 | X183: 9 | Y183: 4 | Z183: 16
A184: 2017-01-08T14:00:00 | B184: 746.599 | C184: 8648 | U184: 2002-10-03 | V184: 3-4 pm | W184: 2002 | X184: 10 | Y184: 3 | Z184: 15
A185: 2017-01-08T15:00:00 | B185: 639.913 | C185: 8570 | W185: 1900 | X185: 1 | Y185: 0
A186: 2017-01-08T16:00:00 | B186: 470.94 | C186: 8964 | U186: 2002-12-04 | V186: 6-7 am | W186: 2002 | X186: 12 | Y186: 4 | Z186: 6
A187: 2017-01-08T17:00:00 | B187: 29.144 | C187: 10047 | U187: 2001-01-03 | V187: 7-8 am | W187: 2001 | X187: 1 | Y187: 3 | Z187: 7
A188: 2017-01-08T18:00:00 | B188: 0 | C188: 10912 | U188: 2001-02-22 | V188: 7-8 am | W188: 2001 | X188: 2 | Y188: 22 | Z188: 7
A189: 2017-01-08T19:00:00 | B189: 0 | C189: 11165 | U189: 2001-03-03 | V189: 7-8 am | W189: 2001 | X189: 3 | Y189: 3 | Z189: 7
A190: 2017-01-08T20:00:00 | B190: 0 | C190: 11252 | U190: 2001-04-10 | V190: 4-5 pm | W190: 2001 | X190: 4 | Y190: 10 | Z190: 16
A191: 2017-01-08T21:00:00 | B191: 0 | C191: 11067 | U191: 2001-05-22 | V191: 4-5 pm | W191: 2001 | X191: 5 | Y191: 22 | Z191: 16
A192: 2017-01-08T22:00:00 | B192: 0 | C192: 10577 | U192: 2001-06-05 | V192: 2-3 pm | W192: 2001 | X192: 6 | Y192: 5 | Z192: 14
A193: 2017-01-08T23:00:00 | B193: 0 | C193: 10227 | U193: 2001-07-11 | V193: 3-4 pm | W193: 2001 | X193: 7 | Y193: 11 | Z193: 15
A194: 2017-01-09 | B194: 0 | C194: 10027 | U194: 2001-08-09 | V194: 3-4 pm | W194: 2001 | X194: 8 | Y194: 9 | Z194: 15
A195: 2017-01-09T01:00:00 | B195: 0 | C195: 10048 | U195: 2001-09-10 | V195: 3-4 pm | W195: 2001 | X195: 9 | Y195: 10 | Z195: 15
A196: 2017-01-09T02:00:00 | B196: 0 | C196: 10068 | U196: 2001-10-29 | V196: 6-7 am | W196: 2001 | X196: 10 | Y196: 29 | Z196: 6
A197: 2017-01-09T03:00:00 | B197: 0 | C197: 10196 | U197: 2001-11-13 | V197: 7-8 am | W197: 2001 | X197: 11 | Y197: 13 | Z197: 7
A198: 2017-01-09T04:00:00 | B198: 0 | C198: 10460 | U198: 2001-12-27 | V198: 8-9 am | W198: 2001 | X198: 12 | Y198: 27 | Z198: 8
A199: 2017-01-09T05:00:00 | B199: 0 | C199: 11074
A200: 2017-01-09T06:00:00 | B200: 0 | C200: 12003
... 8561 more rows

Sheet Hourly Input
A1: [Under Development for PPA option]
B2: Label | C2: Total, kWh | D2: % of time | G2: On-Peak Demand, kW | N2: INSTRUCTIONS
A3: On-Peak | B3: 1 | C3: =SUMIF(C20:C8779,B3,D20:D8779) -> 1997098.122 | D3: =C3/(C3+C4) -> 0.1940801885 | F3: January | G3: 1 | H3: =MAX(IF($C$20:$C$8779=1,IF(MONTH($A$20:$A$8779=G3),$D$20:$D$8779))) -> 5913.16 | N3: 1. AFTER simulation, click on DATA tables.
A4: Off-peak | B4: 2 | C4: =SUMIF(C20:C8779,B4,D20:D8779) -> 8292968.772 | D4: =C4/(C3+C4) -> 0.8059198115 | F4: February | G4: 2 | H4: =MAX(IF($C$20:$C$8779=1,IF(MONTH($A$20:$A$8779=G4),$D$20:$D$8779))) -> 5913.16 | N4: 2. Select options as shown on screenshot.
F5: March | G5: 3 | H5: =MAX(IF($C$20:$C$8779=1,IF(MONTH($A$20:$A$8779=G5),$D$20:$D$8779))) -> 5913.16 | N5: 3. Click Copy to clipboard
F6: April | G6: 4 | H6: =MAX(IF($C$20:$C$8779=1,IF(MONTH($A$20:$A$8779=G6),$D$20:$D$8779))) -> 5913.16 | N6: 4. Paste under cell a10
F7: May | G7: 5 | H7: =MAX(IF($C$20:$C$8779=1,IF(MONTH($A$20:$A$8779=G7),$D$20:$D$8779))) -> 5913.16
F8: June | G8: 6 | H8: =MAX(IF($C$20:$C$8779=1,IF(MONTH($A$20:$A$8779=G8),$D$20:$D$8779))) -> 5913.16
F9: July | G9: 7 | H9: =MAX(IF($C$20:$C$8779=1,IF(MONTH($A$20:$A$8779=G9),$D$20:$D$8779))) -> 5913.16
F10: August | G10: 8 | H10: =MAX(IF($C$20:$C$8779=1,IF(MONTH($A$20:$A$8779=G10),$D$20:$D$8779))) -> 5913.16
F11: September | G11: 9 | H11: =MAX(IF($C$20:$C$8779=1,IF(MONTH($A$20:$A$8779=G11),$D$20:$D$8779))) -> 5913.16
F12: October | G12: 10 | H12: =MAX(IF($C$20:$C$8779=1,IF(MONTH($A$20:$A$8779=G12),$D$20:$D$8779))) -> 5913.16
F13: November | G13: 11 | H13: =MAX(IF($C$20:$C$8779=1,IF(MONTH($A$20:$A$8779=G13),$D$20:$D$8779))) -> 5913.16
F14: December | G14: 12 | H14: =MAX(IF($C$20:$C$8779=1,IF(MONTH($A$20:$A$8779=G14),$D$20:$D$8779))) -> 5913.16
A18: PASTE STARTING IN CELL A10
A19: Time stamp | B19: TOU period for demand charges (year 1 hourly) | C19: TOU period for energy charges (year 1 hourly) | D19: AC inverter power | (W)
A20: 2018-01-01 | B20: 1 | C20: 2 | D20: 0
A21: 2018-01-01T01:00:00 | B21: 1 | C21: 2 | D21: 0
A22: 2018-01-01T02:00:00 | B22: 1 | C22: 2 | D22: 0
A23: 2018-01-01T03:00:00 | B23: 1 | C23: 2 | D23: 0
A24: 2018-01-01T04:00:00 | B24: 1 | C24: 2 | D24: 0
A25: 2018-01-01T05:00:00 | B25: 1 | C25: 2 | D25: 0
A26: 2018-01-01T06:00:00 | B26: 1 | C26: 1 | D26: 0
A27: 2018-01-01T07:00:00 | B27: 1 | C27: 1 | D27: 51.8545
A28: 2018-01-01T08:00:00 | B28: 1 | C28: 1 | D28: 287.571
A29: 2018-01-01T09:00:00 | B29: 1 | C29: 2 | D29: 433.843
A30: 2018-01-01T10:00:00 | B30: 1 | C30: 2 | D30: 581.034
A31: 2018-01-01T11:00:00 | B31: 1 | C31: 2 | D31: 1439.82
A32: 2018-01-01T12:00:00 | B32: 1 | C32: 2 | D32: 1806.12
A33: 2018-01-01T13:00:00 | B33: 1 | C33: 2 | D33: 1665.86
A34: 2018-01-01T14:00:00 | B34: 1 | C34: 2 | D34: 1399.25
A35: 2018-01-01T15:00:00 | B35: 1 | C35: 2 | D35: 1116.82
A36: 2018-01-01T16:00:00 | B36: 1 | C36: 2 | D36: 409.563
A37: 2018-01-01T17:00:00 | B37: 1 | C37: 2 | D37: 0
A38: 2018-01-01T18:00:00 | B38: 1 | C38: 2 | D38: 0
A39: 2018-01-01T19:00:00 | B39: 1 | C39: 2 | D39: 0
A40: 2018-01-01T20:00:00 | B40: 1 | C40: 2 | D40: 0
A41: 2018-01-01T21:00:00 | B41: 1 | C41: 2 | D41: 0
A42: 2018-01-01T22:00:00 | B42: 1 | C42: 2 | D42: 0
A43: 2018-01-01T23:00:00 | B43: 1 | C43: 2 | D43: 0
A44: 2018-01-02 | B44: 1 | C44: 2 | D44: 0
A45: 2018-01-02T01:00:00 | B45: 1 | C45: 2 | D45: 0
A46: 2018-01-02T02:00:00 | B46: 1 | C46: 2 | D46: 0
A47: 2018-01-02T03:00:00 | B47: 1 | C47: 2 | D47: 0
A48: 2018-01-02T04:00:00 | B48: 1 | C48: 2 | D48: 0
A49: 2018-01-02T05:00:00 | B49: 1 | C49: 2 | D49: 0
A50: 2018-01-02T06:00:00 | B50: 1 | C50: 1 | D50: 0
A51: 2018-01-02T07:00:00 | B51: 1 | C51: 1 | D51: 0
A52: 2018-01-02T08:00:00 | B52: 1 | C52: 1 | D52: 139.329
A53: 2018-01-02T09:00:00 | B53: 1 | C53: 2 | D53: 388.634
A54: 2018-01-02T10:00:00 | B54: 1 | C54: 2 | D54: 561.401
A55: 2018-01-02T11:00:00 | B55: 1 | C55: 2 | D55: 638.149
A56: 2018-01-02T12:00:00 | B56: 1 | C56: 2 | D56: 770.449
A57: 2018-01-02T13:00:00 | B57: 1 | C57: 2 | D57: 718.65
A58: 2018-01-02T14:00:00 | B58: 1 | C58: 2 | D58: 612.517
A59: 2018-01-02T15:00:00 | B59: 1 | C59: 2 | D59: 761.208
A60: 2018-01-02T16:00:00 | B60: 1 | C60: 2 | D60: 327.68
A61: 2018-01-02T17:00:00 | B61: 1 | C61: 2 | D61: 0
A62: 2018-01-02T18:00:00 | B62: 1 | C62: 2 | D62: 0
A63: 2018-01-02T19:00:00 | B63: 1 | C63: 2 | D63: 0
A64: 2018-01-02T20:00:00 | B64: 1 | C64: 2 | D64: 0
A65: 2018-01-02T21:00:00 | B65: 1 | C65: 2 | D65: 0
A66: 2018-01-02T22:00:00 | B66: 1 | C66: 2 | D66: 0
A67: 2018-01-02T23:00:00 | B67: 1 | C67: 2 | D67: 0
A68: 2018-01-03 | B68: 1 | C68: 2 | D68: 0
A69: 2018-01-03T01:00:00 | B69: 1 | C69: 2 | D69: 0
A70: 2018-01-03T02:00:00 | B70: 1 | C70: 2 | D70: 0
A71: 2018-01-03T03:00:00 | B71: 1 | C71: 2 | D71: 0
A72: 2018-01-03T04:00:00 | B72: 1 | C72: 2 | D72: 0
A73: 2018-01-03T05:00:00 | B73: 1 | C73: 2 | D73: 0
A74: 2018-01-03T06:00:00 | B74: 1 | C74: 1 | D74: 0
A75: 2018-01-03T07:00:00 | B75: 1 | C75: 1 | D75: 395.928
A76: 2018-01-03T08:00:00 | B76: 1 | C76: 1 | D76: 2174.28
A77: 2018-01-03T09:00:00 | B77: 1 | C77: 2 | D77: 3855.02
A78: 2018-01-03T10:00:00 | B78: 1 | C78: 2 | D78: 5017.73
A79: 2018-01-03T11:00:00 | B79: 1 | C79: 2 | D79: 5600.16
A80: 2018-01-03T12:00:00 | B80: 1 | C80: 2 | D80: 5741.49
A81: 2018-01-03T13:00:00 | B81: 1 | C81: 2 | D81: 5387.56
A82: 2018-01-03T14:00:00 | B82: 1 | C82: 2 | D82: 4535.53
A83: 2018-01-03T15:00:00 | B83: 1 | C83: 2 | D83: 3235.67
A84: 2018-01-03T16:00:00 | B84: 1 | C84: 2 | D84: 1409.02
A85: 2018-01-03T17:00:00 | B85: 1 | C85: 2 | D85: 28.2338
A86: 2018-01-03T18:00:00 | B86: 1 | C86: 2 | D86: 0
A87: 2018-01-03T19:00:00 | B87: 1 | C87: 2 | D87: 0
A88: 2018-01-03T20:00:00 | B88: 1 | C88: 2 | D88: 0
A89: 2018-01-03T21:00:00 | B89: 1 | C89: 2 | D89: 0
A90: 2018-01-03T22:00:00 | B90: 1 | C90: 2 | D90: 0
A91: 2018-01-03T23:00:00 | B91: 1 | C91: 2 | D91: 0
A92: 2018-01-04 | B92: 1 | C92: 2 | D92: 0
A93: 2018-01-04T01:00:00 | B93: 1 | C93: 2 | D93: 0
A94: 2018-01-04T02:00:00 | B94: 1 | C94: 2 | D94: 0
A95: 2018-01-04T03:00:00 | B95: 1 | C95: 2 | D95: 0
A96: 2018-01-04T04:00:00 | B96: 1 | C96: 2 | D96: 0
A97: 2018-01-04T05:00:00 | B97: 1 | C97: 2 | D97: 0
A98: 2018-01-04T06:00:00 | B98: 1 | C98: 1 | D98: 0
A99: 2018-01-04T07:00:00 | B99: 1 | C99: 1 | D99: 421.885
A100: 2018-01-04T08:00:00 | B100: 1 | C100: 1 | D100: 2152.91
A101: 2018-01-04T09:00:00 | B101: 1 | C101: 2 | D101: 3756.01
A102: 2018-01-04T10:00:00 | B102: 1 | C102: 2 | D102: 4289.09
A103: 2018-01-04T11:00:00 | B103: 1 | C103: 2 | D103: 5483.68
A104: 2018-01-04T12:00:00 | B104: 1 | C104: 2 | D104: 5153.08
A105: 2018-01-04T13:00:00 | B105: 1 | C105: 2 | D105: 5290.28
A106: 2018-01-04T14:00:00 | B106: 1 | C106: 2 | D106: 4354.31
A107: 2018-01-04T15:00:00 | B107: 1 | C107: 2 | D107: 3048.37
A108: 2018-01-04T16:00:00 | B108: 1 | C108: 2 | D108: 1149.71
A109: 2018-01-04T17:00:00 | B109: 1 | C109: 2 | D109: 36.1649
A110: 2018-01-04T18:00:00 | B110: 1 | C110: 2 | D110: 0
A111: 2018-01-04T19:00:00 | B111: 1 | C111: 2 | D111: 0
A112: 2018-01-04T20:00:00 | B112: 1 | C112: 2 | D112: 0
A113: 2018-01-04T21:00:00 | B113: 1 | C113: 2 | D113: 0
A114: 2018-01-04T22:00:00 | B114: 1 | C114: 2 | D114: 0
A115: 2018-01-04T23:00:00 | B115: 1 | C115: 2 | D115: 0
A116: 2018-01-05 | B116: 1 | C116: 2 | D116: 0
A117: 2018-01-05T01:00:00 | B117: 1 | C117: 2 | D117: 0
A118: 2018-01-05T02:00:00 | B118: 1 | C118: 2 | D118: 0
A119: 2018-01-05T03:00:00 | B119: 1 | C119: 2 | D119: 0
A120: 2018-01-05T04:00:00 | B120: 1 | C120: 2 | D120: 0
A121: 2018-01-05T05:00:00 | B121: 1 | C121: 2 | D121: 0
A122: 2018-01-05T06:00:00 | B122: 1 | C122: 1 | D122: 0
A123: 2018-01-05T07:00:00 | B123: 1 | C123: 1 | D123: 212.016
A124: 2018-01-05T08:00:00 | B124: 1 | C124: 1 | D124: 1256.07
A125: 2018-01-05T09:00:00 | B125: 1 | C125: 2 | D125: 3128.92
A126: 2018-01-05T10:00:00 | B126: 1 | C126: 2 | D126: 4245.28
A127: 2018-01-05T11:00:00 | B127: 1 | C127: 2 | D127: 4478.05
A128: 2018-01-05T12:00:00 | B128: 1 | C128: 2 | D128: 4858.36
A129: 2018-01-05T13:00:00 | B129: 1 | C129: 2 | D129: 4102.85
A130: 2018-01-05T14:00:00 | B130: 1 | C130: 2 | D130: 2103.95
A131: 2018-01-05T15:00:00 | B131: 1 | C131: 2 | D131: 1068.16
A132: 2018-01-05T16:00:00 | B132: 1 | C132: 2 | D132: 261.54
A133: 2018-01-05T17:00:00 | B133: 1 | C133: 2 | D133: 0
A134: 2018-01-05T18:00:00 | B134: 1 | C134: 2 | D134: 0
A135: 2018-01-05T19:00:00 | B135: 1 | C135: 2 | D135: 0
A136: 2018-01-05T20:00:00 | B136: 1 | C136: 2 | D136: 0
A137: 2018-01-05T21:00:00 | B137: 1 | C137: 2 | D137: 0
A138: 2018-01-05T22:00:00 | B138: 1 | C138: 2 | D138: 0
A139: 2018-01-05T23:00:00 | B139: 1 | C139: 2 | D139: 0
A140: 2018-01-06 | B140: 1 | C140: 2 | D140: 0
A141: 2018-01-06T01:00:00 | B141: 1 | C141: 2 | D141: 0
A142: 2018-01-06T02:00:00 | B142: 1 | C142: 2 | D142: 0
A143: 2018-01-06T03:00:00 | B143: 1 | C143: 2 | D143: 0
A144: 2018-01-06T04:00:00 | B144: 1 | C144: 2 | D144: 0
A145: 2018-01-06T05:00:00 | B145: 1 | C145: 2 | D145: 0
A146: 2018-01-06T06:00:00 | B146: 1 | C146: 2 | D146: 0
A147: 2018-01-06T07:00:00 | B147: 1 | C147: 2 | D147: 32.6894
A148: 2018-01-06T08:00:00 | B148: 1 | C148: 2 | D148: 420.776
A149: 2018-01-06T09:00:00 | B149: 1 | C149: 2 | D149: 892.098
A150: 2018-01-06T10:00:00 | B150: 1 | C150: 2 | D150: 1248.95
A151: 2018-01-06T11:00:00 | B151: 1 | C151: 2 | D151: 1830.51
A152: 2018-01-06T12:00:00 | B152: 1 | C152: 2 | D152: 1574.33
A153: 2018-01-06T13:00:00 | B153: 1 | C153: 2 | D153: 1412.94
A154: 2018-01-06T14:00:00 | B154: 1 | C154: 2 | D154: 1195.6
A155: 2018-01-06T15:00:00 | B155: 1 | C155: 2 | D155: 417.654
A156: 2018-01-06T16:00:00 | B156: 1 | C156: 2 | D156: 131.099
A157: 2018-01-06T17:00:00 | B157: 1 | C157: 2 | D157: 0
A158: 2018-01-06T18:00:00 | B158: 1 | C158: 2 | D158: 0
A159: 2018-01-06T19:00:00 | B159: 1 | C159: 2 | D159: 0
A160: 2018-01-06T20:00:00 | B160: 1 | C160: 2 | D160: 0
A161: 2018-01-06T21:00:00 | B161: 1 | C161: 2 | D161: 0
A162: 2018-01-06T22:00:00 | B162: 1 | C162: 2 | D162: 0
A163: 2018-01-06T23:00:00 | B163: 1 | C163: 2 | D163: 0
A164: 2018-01-07 | B164: 1 | C164: 2 | D164: 0
A165: 2018-01-07T01:00:00 | B165: 1 | C165: 2 | D165: 0
A166: 2018-01-07T02:00:00 | B166: 1 | C166: 2 | D166: 0
A167: 2018-01-07T03:00:00 | B167: 1 | C167: 2 | D167: 0
A168: 2018-01-07T04:00:00 | B168: 1 | C168: 2 | D168: 0
A169: 2018-01-07T05:00:00 | B169: 1 | C169: 2 | D169: 0
A170: 2018-01-07T06:00:00 | B170: 1 | C170: 2 | D170: 0
A171: 2018-01-07T07:00:00 | B171: 1 | C171: 2 | D171: 19.0172
A172: 2018-01-07T08:00:00 | B172: 1 | C172: 2 | D172: 450.208
A173: 2018-01-07T09:00:00 | B173: 1 | C173: 2 | D173: 1019.58
A174: 2018-01-07T10:00:00 | B174: 1 | C174: 2 | D174: 1441.42
A175: 2018-01-07T11:00:00 | B175: 1 | C175: 2 | D175: 1528.85
A176: 2018-01-07T12:00:00 | B176: 1 | C176: 2 | D176: 991.064
A177: 2018-01-07T13:00:00 | B177: 1 | C177: 2 | D177: 810.393
A178: 2018-01-07T14:00:00 | B178: 1 | C178: 2 | D178: 705.472
A179: 2018-01-07T15:00:00 | B179: 1 | C179: 2 | D179: 484.846
A180: 2018-01-07T16:00:00 | B180: 1 | C180: 2 | D180: 140.869
A181: 2018-01-07T17:00:00 | B181: 1 | C181: 2 | D181: 0
A182: 2018-01-07T18:00:00 | B182: 1 | C182: 2 | D182: 0
A183: 2018-01-07T19:00:00 | B183: 1 | C183: 2 | D183: 0
A184: 2018-01-07T20:00:00 | B184: 1 | C184: 2 | D184: 0
A185: 2018-01-07T21:00:00 | B185: 1 | C185: 2 | D185: 0
A186: 2018-01-07T22:00:00 | B186: 1 | C186: 2 | D186: 0
A187: 2018-01-07T23:00:00 | B187: 1 | C187: 2 | D187: 0
A188: 2018-01-08 | B188: 1 | C188: 2 | D188: 0
A189: 2018-01-08T01:00:00 | B189: 1 | C189: 2 | D189: 0
A190: 2018-01-08T02:00:00 | B190: 1 | C190: 2 | D190: 0
A191: 2018-01-08T03:00:00 | B191: 1 | C191: 2 | D191: 0
A192: 2018-01-08T04:00:00 | B192: 1 | C192: 2 | D192: 0
A193: 2018-01-08T05:00:00 | B193: 1 | C193: 2 | D193: 0
A194: 2018-01-08T06:00:00 | B194: 1 | C194: 1 | D194: 0
A195: 2018-01-08T07:00:00 | B195: 1 | C195: 1 | D195: 22.818
A196: 2018-01-08T08:00:00 | B196: 1 | C196: 1 | D196: 234.387
A197: 2018-01-08T09:00:00 | B197: 1 | C197: 2 | D197: 970.714
A198: 2018-01-08T10:00:00 | B198: 1 | C198: 2 | D198: 1351.56
A199: 2018-01-08T11:00:00 | B199: 1 | C199: 2 | D199: 1622.14
A200: 2018-01-08T12:00:00 | B200: 1 | C200: 2 | D200: 1636.58
A201: 2018-01-08T13:00:00 | B201: 1 | C201: 2 | D201: 1699.11
A202: 2018-01-08T14:00:00 | B202: 1 | C202: 2 | D202: 1421.92
A203: 2018-01-08T15:00:00 | B203: 1 | C203: 2 | D203: 917.981
... 8576 more rows

Sheet Debt Service
A1: Loan Amount | B1: =Model!E40 -> 1875000
A2: Loan Rate, % | B2: 0
A3: Years | B3: =A33 -> 25
A8: Year | B8: Principal Payment | C8: Interest | D8: Loan Balance | E8: Project Cash Flow Before Financing | F8: After Finance Cash Flow
A9: 1 | B9: =-PPMT($B$2,A9,$B$3,$B$1,0,0) -> 75000 | C9: =-IPMT($B$2,A9,$B$3,$B$1,0,0) -> 0 | D9: =$B$1-SUM($B$9:B9) -> 1800000 | E9: =[1]Model!R76 -> 73667.64771 | F9: =E9-B9-C9 -> -1332.35229
A10: 2 | B10: 75000 | C10: =-IPMT($B$2,A10,$B$3,$B$1,0,0) -> 0 | D10: =$B$1-SUM($B$9:B10) -> 1725000 | E10: =[1]Model!R77 -> 73292.27875 | F10: =E10-B10-C10 -> -1707.721247
A11: 3 | B11: 75000 | C11: 0 | D11: =$B$1-SUM($B$9:B11) -> 1650000 | E11: =[1]Model!R78 -> 72919.41416 | F11: -2080.58584
A12: 4 | B12: 75000 | C12: 0 | D12: =$B$1-SUM($B$9:B12) -> 1575000 | E12: =[1]Model!R79 -> 72549.01765 | F12: -2450.982355
A13: 5 | B13: 75000 | C13: 0 | D13: =$B$1-SUM($B$9:B13) -> 1500000 | E13: =[1]Model!R80 -> 72181.05385 | F13: -2818.946151
A14: 6 | B14: 75000 | C14: 0 | D14: =$B$1-SUM($B$9:B14) -> 1425000 | E14: =[1]Model!R81 -> 71815.48831 | F14: -3184.511689
A15: 7 | B15: 75000 | C15: 0 | D15: =$B$1-SUM($B$9:B15) -> 1350000 | E15: =[1]Model!R82 -> 71452.28744 | F15: -3547.712556
A16: 8 | B16: 75000 | C16: 0 | D16: =$B$1-SUM($B$9:B16) -> 1275000 | E16: =[1]Model!R83 -> 71091.41851 | F16: -3908.58149
A17: 9 | B17: 75000 | C17: 0 | D17: =$B$1-SUM($B$9:B17) -> 1200000 | E17: =[1]Model!R84 -> 70732.8496 | F17: -4267.150401
A18: 10 | B18: 75000 | C18: 0 | D18: =$B$1-SUM($B$9:B18) -> 1125000 | E18: =[1]Model!R85 -> 70376.5496 | F18: -4623.450399
A19: 11 | B19: 75000 | C19: 0 | D19: =$B$1-SUM($B$9:B19) -> 1050000 | E19: =[1]Model!R86 -> 70022.48819 | F19: -4977.511814
A20: 12 | B20: 75000 | C20: 0 | D20: =$B$1-SUM($B$9:B20) -> 975000 | E20: =[1]Model!R87 -> 69670.63578 | F20: -5329.364218
A21: 13 | B21: 75000 | C21: 0 | D21: =$B$1-SUM($B$9:B21) -> 900000 | E21: =[1]Model!R88 -> 69320.96355 | F21: -5679.036447
A22: 14 | B22: 75000 | C22: 0 | D22: =$B$1-SUM($B$9:B22) -> 825000 | E22: =[1]Model!R89 -> 68973.44338 | F22: -6026.556622
A23: 15 | B23: 75000 | C23: 0 | D23: =$B$1-SUM($B$9:B23) -> 750000 | E23: =[1]Model!R90 -> 68628.04783 | F23: -6371.952166
A24: 16 | B24: 75000 | C24: 0 | D24: =$B$1-SUM($B$9:B24) -> 675000 | E24: =[1]Model!R91 -> 68284.75017 | F24: -6715.249831
A25: 17 | B25: 75000 | C25: 0 | D25: =$B$1-SUM($B$9:B25) -> 600000 | E25: =[1]Model!R92 -> 67943.52429 | F25: -7056.475708
A26: 18 | B26: 75000 | C26: 0 | D26: =$B$1-SUM($B$9:B26) -> 525000 | E26: =[1]Model!R93 -> 67604.34475 | F26: -7395.655253
A27: 19 | B27: 75000 | C27: 0 | D27: =$B$1-SUM($B$9:B27) -> 450000 | E27: =[1]Model!R94 -> 67267.1867 | F27: -7732.813301
A28: 20 | B28: 75000 | C28: 0 | D28: =$B$1-SUM($B$9:B28) -> 375000 | E28: =[1]Model!R95 -> 66932.02591 | F28: -8067.974085
A29: 21 | B29: 75000 | C29: 0 | D29: =$B$1-SUM($B$9:B29) -> 300000 | E29: =[1]Model!R96 -> 66598.83875 | F29: -8401.161253
A30: 22 | B30: 75000 | C30: 0 | D30: =$B$1-SUM($B$9:B30) -> 225000 | E30: =[1]Model!R97 -> 66267.60212 | F30: -8732.397882
A31: 23 | B31: 75000 | C31: 0 | D31: =$B$1-SUM($B$9:B31) -> 150000 | E31: =[1]Model!R98 -> 65938.2935 | F31: -9061.706501
A32: 24 | B32: 75000 | C32: 0 | D32: =$B$1-SUM($B$9:B32) -> 75000 | E32: =[1]Model!R99 -> 65610.8909 | F32: -9389.109098
A33: 25 | B33: 75000 | C33: 0 | D33: =$B$1-SUM($B$9:B33) -> 0 | E33: =[1]Model!R100 -> 65285.37286 | F33: -9714.627141

Sheet simulations (hidden)
A1: Location | B1: State | C1: System nameplate size (kWdc) | D1: Annual AC system output (kWh) | E1: First year kWh/kW
A2: USA FL Crestview Bob Sikes Ap (TMY3) | B2: FL | C2: 500 | D2: 756128 | E2: 1512.26
A3: USA FL Daytona Beach (TMY2) | B3: FL | C3: 500 | D3: 883901 | E3: 1767.8
A4: USA FL Daytona Beach Intl Ap (TMY3) | B4: FL | C4: 500 | D4: 888259 | E4: 1776.52
A5: USA FL Fort Lauderdale (TMY3) | B5: FL | C5: 500 | D5: 794999 | E5: 1590
A6: USA FL Fort Lauderdale Hollywood Int (TMY3) | B6: FL | C6: 500 | D6: 883874 | E6: 1767.75
A7: USA FL Fort Myers Page Field (TMY3) | B7: FL | C7: 500 | D7: 853664 | E7: 1707.33
A8: USA FL Gainesville Regional Ap (TMY3) | B8: FL | C8: 500 | D8: 826793 | E8: 1653.59
A9: USA FL Homestead Afb (TMY3) | B9: FL | C9: 500 | D9: 893214 | E9: 1786.43
A10: USA FL Jacksonville (TMY2) | B10: FL | C10: 500 | D10: 841484 | E10: 1682.97
A11: USA FL Jacksonville Craig (TMY3) | B11: FL | C11: 500 | D11: 767903 | E11: 1535.81
A12: USA FL Jacksonville Nas (TMY3) | B12: FL | C12: 500 | D12: 825065 | E12: 1650.13
A13: USA FL Key West (TMY2) | B13: FL | C13: 500 | D13: 930649 | E13: 1861.3
A14: USA FL Key West Intl Arpt (TMY3) | B14: FL | C14: 500 | D14: 937205 | E14: 1874.41
A15: USA FL Key West Nas (TMY3) | B15: FL | C15: 500 | D15: 913257 | E15: 1826.51
A16: USA FL Lakeland Linder Rgn (TMY3) | B16: FL | C16: 500 | D16: 823106 | E16: 1646.21
A17: USA FL Macdill Afb (TMY3) | B17: FL | C17: 500 | D17: 876187 | E17: 1752.37
A18: USA FL Marathon Airport (TMY3) | B18: FL | C18: 500 | D18: 855362 | E18: 1710.72
A19: USA FL Mayport Ns (TMY3) | B19: FL | C19: 500 | D19: 854778 | E19: 1709.56
A20: USA FL Melbourne Regional Ap (TMY3) | B20: FL | C20: 500 | D20: 862775 | E20: 1725.55
A21: USA FL Miami (TMY2) | B21: FL | C21: 500 | D21: 873681 | E21: 1747.36
A22: USA FL Miami Intl Ap (TMY3) | B22: FL | C22: 500 | D22: 853095 | E22: 1706.19
A23: USA FL Miami Kendall-tamia (TMY3) | B23: FL | C23: 500 | D23: 851791 | E23: 1703.58
A24: USA FL Miami Opa Locka (TMY3) | B24: FL | C24: 500 | D24: 888680 | E24: 1777.36
A25: USA FL Naples Municipal (TMY3) | B25: FL | C25: 500 | D25: 938995 | E25: 1877.99
A26: USA FL Nasa Shuttle Fclty (TMY3) | B26: FL | C26: 500 | D26: 861962 | E26: 1723.92
A27: USA FL Ocala Muni (awos) (TMY3) | B27: FL | C27: 500 | D27: 916932 | E27: 1833.86
A28: USA FL Orlando Executive Ap (TMY3) | B28: FL | C28: 500 | D28: 839246 | E28: 1678.49
A29: USA FL Orlando Intl Arpt (TMY3) | B29: FL | C29: 500 | D29: 809427 | E29: 1618.85
A30: USA FL Orlando Sanford Airport (TMY3) | B30: FL | C30: 500 | D30: 927694 | E30: 1855.39
A31: USA FL Panama City Bay Co (TMY3) | B31: FL | C31: 500 | D31: 868905 | E31: 1737.81
A32: USA FL Pensacola Forest Sherman Nas (TMY3) | B32: FL | C32: 500 | D32: 901401 | E32: 1802.8
A33: USA FL Pensacola Regional Ap (TMY3) | B33: FL | C33: 500 | D33: 809771 | E33: 1619.54
A34: USA FL Sarasota Bradenton (TMY3) | B34: FL | C34: 500 | D34: 889277 | E34: 1778.55
A35: USA FL Southwest Florida I (TMY3) | B35: FL | C35: 500 | D35: 823939 | E35: 1647.88
A36: USA FL St Lucie Co Intl (TMY3) | B36: FL | C36: 500 | D36: 779735 | E36: 1559.47
A37: USA FL St Petersburg Albert Whitted (TMY3) | B37: FL | C37: 500 | D37: 903243 | E37: 1806.49
A38: USA FL St Petersburg Clear (TMY3) | B38: FL | C38: 500 | D38: 899039 | E38: 1798.08
A39: USA FL Tallahassee (TMY2) | B39: FL | C39: 500 | D39: 854050 | E39: 1708.1
A40: USA FL Tallahassee Regional Ap [isis] (TMY3) | B40: FL | C40: 500 | D40: 834957 | E40: 1669.91
A41: USA FL Tampa (TMY2) | B41: FL | C41: 500 | D41: 895273 | E41: 1790.55
A42: USA FL Tampa International Ap (TMY3) | B42: FL | C42: 500 | D42: 909263 | E42: 1818.53
A43: USA FL Tyndall Afb (TMY3) | B43: FL | C43: 500 | D43: 861946 | E43: 1723.89
A44: USA FL Valparaiso Elgin Afb (TMY3) | B44: FL | C44: 500 | D44: 883261 | E44: 1766.52
A45: USA FL Valparaiso Hurlburt (TMY3) | B45: FL | C45: 500 | D45: 891927 | E45: 1783.85
A46: USA FL Vero Beach Municipal Arpt (TMY3) | B46: FL | C46: 500 | D46: 793592 | E46: 1587.18
A47: USA FL West Palm Beach (TMY2) | B47: FL | C47: 500 | D47: 855286 | E47: 1710.57
A48: USA FL West Palm Beach Intl Arpt (TMY3) | B48: FL | C48: 500 | D48: 884585 | E48: 1769.17
A49: USA FL Whiting Field Naas (TMY3) | B49: FL | C49: 500 | D49: 803740 | E49: 1607.48
A50: USA GA Albany Dougherty County Ap (TMY3) | B50: GA | C50: 500 | D50: 800146 | E50: 1600.29
A51: USA GA Alma Bacon County Ap (TMY3) | B51: GA | C51: 500 | D51: 874139 | E51: 1748.28
A52: USA GA Athens (TMY2) | B52: GA | C52: 500 | D52: 864084 | E52: 1728.17
A53: USA GA Athens Ben Epps Ap (TMY3) | B53: GA | C53: 500 | D53: 853902 | E53: 1707.8
A54: USA GA Atlanta (TMY2) | B54: GA | C54: 500 | D54: 878199 | E54: 1756.4
A55: USA GA Atlanta Hartsfield Intl Ap (TMY3) | B55: GA | C55: 500 | D55: 868274 | E55: 1736.55
A56: USA GA Augusta (TMY2) | B56: GA | C56: 500 | D56: 847744 | E56: 1695.49
A57: USA GA Augusta Bush Field (TMY3) | B57: GA | C57: 500 | D57: 867321 | E57: 1734.64
A58: USA GA Brunswick Golden Is (TMY3) | B58: GA | C58: 500 | D58: 866779 | E58: 1733.56
A59: USA GA Brunswick Malcolm Mckinnon Ap (TMY3) | B59: GA | C59: 500 | D59: 816991 | E59: 1633.98
A60: USA GA Columbus (TMY2) | B60: GA | C60: 500 | D60: 854019 | E60: 1708.04
A61: USA GA Columbus Metropolitan Arpt (TMY3) | B61: GA | C61: 500 | D61: 843979 | E61: 1687.96
A62: USA GA Dekalb Peachtree (TMY3) | B62: GA | C62: 500 | D62: 732730 | E62: 1465.46
A63: USA GA Fort Benning Lawson (TMY3) | B63: GA | C63: 500 | D63: 817856 | E63: 1635.71
A64: USA GA Fulton Co Arpt Brow (TMY3) | B64: GA | C64: 500 | D64: 717597 | E64: 1435.19
A65: USA GA Hunter Aaf (TMY3) | B65: GA | C65: 500 | D65: 867650 | E65: 1735.3
A66: USA GA Macon (TMY2) | B66: GA | C66: 500 | D66: 842959 | E66: 1685.92
A67: USA GA Macon Middle Ga Regional Ap (TMY3) | B67: GA | C67: 500 | D67: 855650 | E67: 1711.3
A68: USA GA Marietta Dobbins Afb (TMY3) | B68: GA | C68: 500 | D68: 784425 | E68: 1568.85
A69: USA GA Moody Afb Valdosta (TMY3) | B69: GA | C69: 500 | D69: 821711 | E69: 1643.42
A70: USA GA Rome R B Russell Ap (TMY3) | B70: GA | C70: 500 | D70: 782382 | E70: 1564.76
A71: USA GA Savannah (TMY2) | B71: GA | C71: 500 | D71: 863937 | E71: 1727.87
A72: USA GA Savannah Intl Ap (TMY3) | B72: GA | C72: 500 | D72: 849270 | E72: 1698.54
A73: USA GA Valdosta Wb Airport (TMY3) | B73: GA | C73: 500 | D73: 786893 | E73: 1573.79
A74: USA GA Warner Robins Afb (TMY3) | B74: GA | C74: 500 | D74: 832168 | E74: 1664.34
A75: USA KY Bowling Green Warren Co Ap (TMY3) | B75: KY | C75: 500 | D75: 688791 | E75: 1377.58
A76: USA KY Cincinnati Northern Ky Ap (TMY3) | B76: KY | C76: 500 | D76: 772902 | E76: 1545.8
A77: USA KY Covington (TMY2) | B77: KY | C77: 500 | D77: 770128 | E77: 1540.26
A78: USA KY Fort Campbell Aaf (TMY3) | B78: KY | C78: 500 | D78: 741575 | E78: 1483.15
A79: USA KY Fort Knox Godman Aaf (TMY3) | B79: KY | C79: 500 | D79: 739573 | E79: 1479.15
A80: USA KY Henderson City (TMY3) | B80: KY | C80: 500 | D80: 825714 | E80: 1651.43
A81: USA KY Jackson Julian Carroll Ap (TMY3) | B81: KY | C81: 500 | D81: 756252 | E81: 1512.5
A82: USA KY Lexington (TMY2) | B82: KY | C82: 500 | D82: 779735 | E82: 1559.47
A83: USA KY Lexington Bluegrass Ap (TMY3) | B83: KY | C83: 500 | D83: 772108 | E83: 1544.22
A84: USA KY London-corbin Ap (TMY3) | B84: KY | C84: 500 | D84: 735001 | E84: 1470
A85: USA KY Louisville (TMY2) | B85: KY | C85: 500 | D85: 803760 | E85: 1607.52
A86: USA KY Louisville Bowman Field (TMY3) | B86: KY | C86: 500 | D86: 685697 | E86: 1371.39
A87: USA KY Louisville Standiford Field (TMY3) | B87: KY | C87: 500 | D87: 801331 | E87: 1602.66
A88: USA KY Paducah Barkley Regional Ap (TMY3) | B88: KY | C88: 500 | D88: 796048 | E88: 1592.1
A89: USA KY Somerset(awos) (TMY3) | B89: KY | C89: 500 | D89: 768308 | E89: 1536.62
A90: USA SC Anderson County Ap (TMY3) | B90: SC | C90: 500 | D90: 829707 | E90: 1659.41
A91: USA SC Beaufort Mcas (TMY3) | B91: SC | C91: 500 | D91: 862866 | E91: 1725.73
A92: USA SC Charleston (TMY2) | B92: SC | C92: 500 | D92: 871026 | E92: 1742.05
A93: USA SC Charleston Intl Arpt (TMY3) | B93: SC | C93: 500 | D93: 862817 | E93: 1725.63
A94: USA SC Columbia (TMY2) | B94: SC | C94: 500 | D94: 853344 | E94: 1706.69
A95: USA SC Columbia Metro Arpt (TMY3) | B95: SC | C95: 500 | D95: 836986 | E95: 1673.97
A96: USA SC Florence Regional Ap (TMY3) | B96: SC | C96: 500 | D96: 828700 | E96: 1657.4
A97: USA SC Greenville (TMY2) | B97: SC | C97: 500 | D97: 859640 | E97: 1719.28
A98: USA SC Greenville Downtown Ap (TMY3) | B98: SC | C98: 500 | D98: 794714 | E98: 1589.43
A99: USA SC Greer Greenv'l-spartanbrg Ap (TMY3) | B99: SC | C99: 500 | D99: 854925 | E99: 1709.85
A100: USA SC Myrtle Beach Afb (TMY3) | B100: SC | C100: 500 | D100: 887704 | E100: 1775.41
A101: USA SC North Myrtle Beach Grand Stra (TMY3) | B101: SC | C101: 500 | D101: 888117 | E101: 1776.23
A102: USA SC Sumter Shaw Afb (TMY3) | B102: SC | C102: 500 | D102: 844427 | E102: 1688.85
A103: USA TN Bristol (TMY2) | B103: TN | C103: 500 | D103: 769205 | E103: 1538.41
A104: USA TN Bristol Tri City Airport (TMY3) | B104: TN | C104: 500 | D104: 791020 | E104: 1582.04
A105: USA TN Chattanooga (TMY2) | B105: TN | C105: 500 | D105: 798812 | E105: 1597.62
A106: USA TN Chattanooga Lovell Field Ap (TMY3) | B106: TN | C106: 500 | D106: 803643 | E106: 1607.29
A107: USA TN Crossville Memorial Ap (TMY3) | B107: TN | C107: 500 | D107: 725266 | E107: 1450.53
A108: USA TN Dyersburg Municipal Ap (TMY3) | B108: TN | C108: 500 | D108: 860972 | E108: 1721.94
A109: USA TN Jackson Mckellar-sipes Regl A (TMY3) | B109: TN | C109: 500 | D109: 798866 | E109: 1597.73
A110: USA TN Knoxville (TMY2) | B110: TN | C110: 500 | D110: 779866 | E110: 1559.73
A111: USA TN Knoxville Mcghee Tyson Ap (TMY3) | B111: TN | C111: 500 | D111: 805440 | E111: 1610.88
A112: USA TN Memphis (TMY2) | B112: TN | C112: 500 | D112: 885392 | E112: 1770.78
A113: USA TN Memphis International Ap (TMY3) | B113: TN | C113: 500 | D113: 852206 | E113: 1704.41
A114: USA TN Nashville (TMY2) | B114: TN | C114: 500 | D114: 827335 | E114: 1654.67
A115: USA TN Nashville International Ap (TMY3) | B115: TN | C115: 500 | D115: 814826 | E115: 1629.65
A116: USA MS Columbus Afb (TMY3) | B116: MS | C116: 500 | D116: 813334 | E116: 1626.67
A117: USA MS Golden Tri(awos) (TMY3) | B117: MS | C117: 500 | D117: 841542 | E117: 1683.08
A118: USA MS Greenville Municipal (TMY3) | B118: MS | C118: 500 | D118: 858193 | E118: 1716.39
A119: USA MS Greenwood Leflore Arpt (TMY3) | B119: MS | C119: 500 | D119: 863373 | E119: 1726.74
A120: USA MS Gulfport Biloxi Int (TMY3) | B120: MS | C120: 500 | D120: 772319 | E120: 1544.64
A121: USA MS Hattiesburg Laurel (TMY3) | B121: MS | C121: 500 | D121: 848392 | E121: 1696.78
A122: USA MS Jackson (TMY2) | B122: MS | C122: 500 | D122: 849201 | E122: 1698.4
A123: USA MS Jackson International Ap (TMY3) | B123: MS | C123: 500 | D123: 850715 | E123: 1701.43
A124: USA MS Keesler Afb (TMY3) | B124: MS | C124: 500 | D124: 841602 | E124: 1683.2
A125: USA MS Mccomb Pike County Ap (TMY3) | B125: MS | C125: 500 | D125: 798588 | E125: 1597.18
A126: USA MS Meridian (TMY2) | B126: MS | C126: 500 | D126: 831012 | E126: 1662.02
A127: USA MS Meridian Key Field (TMY3) | B127: MS | C127: 500 | D127: 812021 | E127: 1624.04
A128: USA MS Meridian Naas (TMY3) | B128: MS | C128: 500 | D128: 796637 | E128: 1593.27
A129: USA MS Natchez Hardy(awos) (TMY3) | B129: MS | C129: 500 | D129: 858868 | E129: 1717.74
A130: USA MS Tupelo C D Lemons Arpt (TMY3) | B130: MS | C130: 500 | D130: 811300 | E130: 1622.6
A131: USA FL Crestview Bob Sikes Ap (TMY3) | B131: FL | C131: 1000 | D131: 1512260 | E131: 1512.26
A132: USA FL Daytona Beach (TMY2) | B132: FL | C132: 1000 | D132: 1767800 | E132: 1767.8
A133: USA FL Daytona Beach Intl Ap (TMY3) | B133: FL | C133: 1000 | D133: 1776520 | E133: 1776.52
A134: USA FL Fort Lauderdale (TMY3) | B134: FL | C134: 1000 | D134: 1590000 | E134: 1590
A135: USA FL Fort Lauderdale Hollywood Int (TMY3) | B135: FL | C135: 1000 | D135: 1767750 | E135: 1767.75
A136: USA FL Fort Myers Page Field (TMY3) | B136: FL | C136: 1000 | D136: 1707330 | E136: 1707.33
A137: USA FL Gainesville Regional Ap (TMY3) | B137: FL | C137: 1000 | D137: 1653590 | E137: 1653.59
A138: USA FL Homestead Afb (TMY3) | B138: FL | C138: 1000 | D138: 1786430 | E138: 1786.43
A139: USA FL Jacksonville (TMY2) | B139: FL | C139: 1000 | D139: 1682970 | E139: 1682.97
A140: USA FL Jacksonville Craig (TMY3) | B140: FL | C140: 1000 | D140: 1535810 | E140: 1535.81
A141: USA FL Jacksonville Nas (TMY3) | B141: FL | C141: 1000 | D141: 1650130 | E141: 1650.13
A142: USA FL Key West (TMY2) | B142: FL | C142: 1000 | D142: 1861300 | E142: 1861.3
A143: USA FL Key West Intl Arpt (TMY3) | B143: FL | C143: 1000 | D143: 1874410 | E143: 1874.41
A144: USA FL Key West Nas (TMY3) | B144: FL | C144: 1000 | D144: 1826510 | E144: 1826.51
A145: USA FL Lakeland Linder Rgn (TMY3) | B145: FL | C145: 1000 | D145: 1646210 | E145: 1646.21
A146: USA FL Macdill Afb (TMY3) | B146: FL | C146: 1000 | D146: 1752370 | E146: 1752.37
A147: USA FL Marathon Airport (TMY3) | B147: FL | C147: 1000 | D147: 1710720 | E147: 1710.72
A148: USA FL Mayport Ns (TMY3) | B148: FL | C148: 1000 | D148: 1709560 | E148: 1709.56
A149: USA FL Melbourne Regional Ap (TMY3) | B149: FL | C149: 1000 | D149: 1725550 | E149: 1725.55
A150: USA FL Miami (TMY2) | B150: FL | C150: 1000 | D150: 1747360 | E150: 1747.36
A151: USA FL Miami Intl Ap (TMY3) | B151: FL | C151: 1000 | D151: 1706190 | E151: 1706.19
A152: USA FL Miami Kendall-tamia (TMY3) | B152: FL | C152: 1000 | D152: 1703580 | E152: 1703.58
A153: USA FL Miami Opa Locka (TMY3) | B153: FL | C153: 1000 | D153: 1777360 | E153: 1777.36
A154: USA FL Naples Municipal (TMY3) | B154: FL | C154: 1000 | D154: 1877990 | E154: 1877.99
A155: USA FL Nasa Shuttle Fclty (TMY3) | B155: FL | C155: 1000 | D155: 1723920 | E155: 1723.92
A156: USA FL Ocala Muni (awos) (TMY3) | B156: FL | C156: 1000 | D156: 1833860 | E156: 1833.86
A157: USA FL Orlando Executive Ap (TMY3) | B157: FL | C157: 1000 | D157: 1678490 | E157: 1678.49
A158: USA FL Orlando Intl Arpt (TMY3) | B158: FL | C158: 1000 | D158: 1618850 | E158: 1618.85
A159: USA FL Orlando Sanford Airport (TMY3) | B159: FL | C159: 1000 | D159: 1855390 | E159: 1855.39
A160: USA FL Panama City Bay Co (TMY3) | B160: FL | C160: 1000 | D160: 1737810 | E160: 1737.81
A161: USA FL Pensacola Forest Sherman Nas (TMY3) | B161: FL | C161: 1000 | D161: 1802800 | E161: 1802.8
A162: USA FL Pensacola Regional Ap (TMY3) | B162: FL | C162: 1000 | D162: 1619540 | E162: 1619.54
A163: USA FL Sarasota Bradenton (TMY3) | B163: FL | C163: 1000 | D163: 1778550 | E163: 1778.55
A164: USA FL Southwest Florida I (TMY3) | B164: FL | C164: 1000 | D164: 1647880 | E164: 1647.88
A165: USA FL St Lucie Co Intl (TMY3) | B165: FL | C165: 1000 | D165: 1559470 | E165: 1559.47
A166: USA FL St Petersburg Albert Whitted (TMY3) | B166: FL | C166: 1000 | D166: 1806490 | E166: 1806.49
A167: USA FL St Petersburg Clear (TMY3) | B167: FL | C167: 1000 | D167: 1798080 | E167: 1798.08
A168: USA FL Tallahassee (TMY2) | B168: FL | C168: 1000 | D168: 1708100 | E168: 1708.1
A169: USA FL Tallahassee Regional Ap [isis] (TMY3) | B169: FL | C169: 1000 | D169: 1669910 | E169: 1669.91
A170: USA FL Tampa (TMY2) | B170: FL | C170: 1000 | D170: 1790550 | E170: 1790.55
A171: USA FL Tampa International Ap (TMY3) | B171: FL | C171: 1000 | D171: 1818530 | E171: 1818.53
A172: USA FL Tyndall Afb (TMY3) | B172: FL | C172: 1000 | D172: 1723890 | E172: 1723.89
A173: USA FL Valparaiso Elgin Afb (TMY3) | B173: FL | C173: 1000 | D173: 1766520 | E173: 1766.52
A174: USA FL Valparaiso Hurlburt (TMY3) | B174: FL | C174: 1000 | D174: 1783850 | E174: 1783.85
A175: USA FL Vero Beach Municipal Arpt (TMY3) | B175: FL | C175: 1000 | D175: 1587180 | E175: 1587.18
A176: USA FL West Palm Beach (TMY2) | B176: FL | C176: 1000 | D176: 1710570 | E176: 1710.57
A177: USA FL West Palm Beach Intl Arpt (TMY3) | B177: FL | C177: 1000 | D177: 1769170 | E177: 1769.17
A178: USA FL Whiting Field Naas (TMY3) | B178: FL | C178: 1000 | D178: 1607480 | E178: 1607.48
A179: USA GA Albany Dougherty County Ap (TMY3) | B179: GA | C179: 1000 | D179: 1600290 | E179: 1600.29
A180: USA GA Alma Bacon County Ap (TMY3) | B180: GA | C180: 1000 | D180: 1748280 | E180: 1748.28
A181: USA GA Athens (TMY2) | B181: GA | C181: 1000 | D181: 1728170 | E181: 1728.17
A182: USA GA Athens Ben Epps Ap (TMY3) | B182: GA | C182: 1000 | D182: 1707800 | E182: 1707.8
A183: USA GA Atlanta (TMY2) | B183: GA | C183: 1000 | D183: 1756400 | E183: 1756.4
A184: USA GA Atlanta Hartsfield Intl Ap (TMY3) | B184: GA | C184: 1000 | D184: 1736550 | E184: 1736.55
A185: USA GA Augusta (TMY2) | B185: GA | C185: 1000 | D185: 1695490 | E185: 1695.49
A186: USA GA Augusta Bush Field (TMY3) | B186: GA | C186: 1000 | D186: 1734640 | E186: 1734.64
A187: USA GA Brunswick Golden Is (TMY3) | B187: GA | C187: 1000 | D187: 1733560 | E187: 1733.56
A188: USA GA Brunswick Malcolm Mckinnon Ap (TMY3) | B188: GA | C188: 1000 | D188: 1633980 | E188: 1633.98
A189: USA GA Columbus (TMY2) | B189: GA | C189: 1000 | D189: 1708040 | E189: 1708.04
A190: USA GA Columbus Metropolitan Arpt (TMY3) | B190: GA | C190: 1000 | D190: 1687960 | E190: 1687.96
A191: USA GA Dekalb Peachtree (TMY3) | B191: GA | C191: 1000 | D191: 1465460 | E191: 1465.46
A192: USA GA Fort Benning Lawson (TMY3) | B192: GA | C192: 1000 | D192: 1635710 | E192: 1635.71
A193: USA GA Fulton Co Arpt Brow (TMY3) | B193: GA | C193: 1000 | D193: 1435190 | E193: 1435.19
A194: USA GA Hunter Aaf (TMY3) | B194: GA | C194: 1000 | D194: 1735300 | E194: 1735.3
A195: USA GA Macon (TMY2) | B195: GA | C195: 1000 | D195: 1685920 | E195: 1685.92
A196: USA GA Macon Middle Ga Regional Ap (TMY3) | B196: GA | C196: 1000 | D196: 1711300 | E196: 1711.3
A197: USA GA Marietta Dobbins Afb (TMY3) | B197: GA | C197: 1000 | D197: 1568850 | E197: 1568.85
A198: USA GA Moody Afb Valdosta (TMY3) | B198: GA | C198: 1000 | D198: 1643420 | E198: 1643.42
A199: USA GA Rome R B Russell Ap (TMY3) | B199: GA | C199: 1000 | D199: 1564760 | E199: 1564.76
A200: USA GA Savannah (TMY2) | B200: GA | C200: 1000 | D200: 1727870 | E200: 1727.87
... 1371 more rows
